{"text_format":"1","workbook":"xlsx","n_sheets":5,"sheets":["Sheet1","Sheet2","Sheet3","Sheet5","Help"],"not_rendered":{"charts":0,"images":8,"macros":1,"external_links":0,"defined_names":1,"comments":0,"pivot_tables":0},"unopened":[],"bounds":{"document_bytes":16777216,"sheet_cells":100000,"rows_first":2000,"rows_last":500,"rows_between":2000,"halvings":0,"cell_chars":16384,"cell_head_chars":4096},"cells_cut":0,"cells_raw":0,"read":"whole","date_system":"1900"}

{"sheet":"Sheet1","index":0,"n_rows":37,"n_cols":98,"rows_kept":37,"cut":false,"hidden":false,"merged":[]}
["SHEET","B51","B51 (2)","B52","B53","MD67-2","MD67-4","MD67-7","TW300","LO345","PC21_288_FOC","PC21R_288_FOC","S23B_288_FOC","PC20_288_MFOC ","PC20R_288_MFOC","S23B_288_MFOC","PC21_144_FOC","PC21R_144_FOC","S23B_144_FOC","PC20_144_MFOC","PC20R_144_MFOC","S23B_144_MFOC","PC21_96_FOC","PC21R_96_FOC","S23B_96_FOC","PC20_96_MFOC","PC20R_96_MFOC","S23B_96_MFOC","PC21_72_FOC","PC21R_72_FOC","S23B_72_FOC","PC20_72_MFOC","PC20R_72_MFOC","S23B_72_MFOC","PC21_48_FOC","PC21R_48_FOC","S23B_48_FOC","PC21_24_FOC","PC21R_24_FOC","S23B_24_FOC","RR10A","RR10B","RR11A","RR12A","RR12B","RR19A","RR19B","SR20A","SR20B","SR22A","SC00-1","SC00-2B","SC00-2B","SC00-3B","CAB00-7","FS01-3","FS01-5","FS01-7","FS01-9","PP-RP700","PP-RP701","PP-RP702","R720-2","R720-4","R720G-2","R720G-4","MES736A","MES736B","JIF740 24 FOC","JIG740 48 FOC","JIG740 72 FOC","JIG740 96 FOC","JIG741 144 FOC","JIG741 288 FOC","LASH750A(2)","LASH750A(3)","LASH750A(4)","LASH750A(5)","LASH750B(1)","LASH750B(2)","LASH750B(3)","LASH750B(4)","LASH750B(5)","OL751A 288 FOC","OL751A 144 FOC","OL751A 96 FOC","OL751A 72 FOC","OL751A 48 FOC","OL751A 24 FOC","M/T800","M/T804","M/T807","TREE822","RE601-8","BOX-FP","BOX-1","BOX-2","BOX-3"]
["FP001-001",745,null,null,null,null,1040,null,2170,185,null,null,null,null,null,null,null,null,75,null,null,null,null,null,125,null,null,null,null,null,25,null,null,null,null,null,50,null,null,100,null,null,null,null,null,null,null,141,null,null,6,null,null,null,null,51,null,null,null,null,null,null,null,null,null,null,null,null,null,null,null,null,null,null,null,null,null,null,null,null,null,null,null,null,null,null,null,null,null,null,null,null,null,null,5,7,2]
["FP001-002",1015,null,null,null,null,760,null,2050,275,null,null,null,null,null,25,null,null,null,null,null,null,null,null,125,null,null,null,null,null,25,null,null,null,null,null,50,null,null,175,null,null,null,null,null,null,null,133,null,null,5,null,null,null,null,null,null,null,null,null,null,null,null,null,null,null,null,null,null,null,null,null,null,null,null,null,null,null,null,null,null,null,null,null,null,null,null,null,null,null,null,null,null,null,5,9]
["FP001-003",690,null,null,null,null,680,175,1935,390,null,null,null,null,null,25,null,null,50,null,null,null,null,null,150,null,null,null,null,null,75,null,null,null,null,null,50,null,null,100,null,null,null,null,null,null,null,133,null,null,8,null,null,null,null,null,null,null,null,null,null,null,null,null,null,null,null,null,null,null,null,null,null,null,null,null,null,null,null,null,null,null,null,null,null,null,null,null,null,null,null,null,null,null,5,9]
["FP001-004",1335,null,null,null,null,420,null,1935,180,null,null,null,null,null,null,null,null,50,null,null,null,null,null,225,null,null,null,null,null,25,null,null,null,null,null,50,null,null,100,null,null,null,null,null,null,null,126,null,null,5,null,null,null,null,null,null,null,null,null,null,null,null,null,null,null,null,null,null,null,null,null,null,null,null,null,null,null,null,null,null,null,null,null,null,null,null,null,null,null,null,null,null,null,6,8]
["FP001-005",1765,null,null,null,175,531,null,2586,115,null,null,null,null,null,null,null,null,null,null,null,null,null,null,175,null,null,null,null,null,75,null,null,null,null,null,25,null,null,125,null,null,null,null,null,null,null,126,null,null,3,null,null,null,null,null,null,null,null,null,null,null,null,null,null,null,null,null,null,null,null,null,null,null,null,null,null,null,null,null,null,null,null,null,null,null,null,null,null,null,null,null,null,null,6,8]
["FP001-006",1465,null,null,null,175,292,null,2202,270,null,null,null,null,null,null,null,null,null,null,null,null,null,null,150,null,null,null,null,null,25,null,null,null,null,null,75,null,null,125,null,null,null,null,null,null,null,126,null,null,5,null,null,null,null,null,null,null,null,null,null,null,null,null,null,null,null,null,null,null,null,null,null,null,null,null,null,null,null,null,null,null,null,null,null,null,null,null,null,null,null,null,null,null,6,8]
["FP001-007",1325,null,null,null,245,330,null,2010,110,null,null,100,null,null,null,null,null,null,null,null,null,null,null,100,null,null,null,null,null,100,null,null,null,null,null,75,null,null,100,null,null,null,null,null,null,null,126,null,null,6,1,1,null,null,19,null,128,null,null,null,null,null,null,null,null,null,null,null,null,null,null,null,null,null,null,null,null,null,null,null,null,null,null,null,null,null,null,null,null,null,null,null,null,6,7,null,1]
["FP001-008",1290,null,null,null,80,550,0,2031,111,null,null,100,null,null,null,null,null,null,null,null,null,null,null,125,null,null,null,null,null,75,null,null,null,null,null,50,null,null,100,null,null,null,null,null,null,null,126,null,null,9,null,null,null,null,null,null,null,null,null,null,null,null,null,null,null,null,null,null,null,null,null,null,null,null,null,null,null,null,null,null,null,null,null,null,null,null,null,null,null,null,null,null,null,6,8]
["FP001-009",1945,null,null,null,null,160,null,2305,200,null,null,null,null,null,null,null,null,50,null,null,null,null,null,200,null,null,null,null,null,25,null,null,null,null,null,50,null,null,75,null,null,null,null,null,null,null,126,null,null,10,null,null,null,null,29,51,null,null,null,null,null,null,null,null,null,null,null,null,null,null,null,null,null,null,null,null,null,null,null,null,null,null,null,null,null,null,null,null,null,null,null,null,null,6,7,1]
["FP001-010",925,395,null,null,null,545,80,2125,180,null,null,25,null,null,25,null,null,null,null,null,null,null,null,150,null,null,null,null,null,25,null,null,null,null,null,50,null,null,125,null,null,null,null,null,null,null,126,null,null,7,null,null,1,null,null,null,null,253,null,null,null,null,null,null,null,null,null,null,null,null,null,null,null,null,null,null,null,null,null,null,null,null,null,null,null,null,null,null,null,null,null,null,null,6,7,null,1]
["FP001-011",910,295,null,null,null,231,175,2681,365,null,null,null,null,null,25,null,null,null,null,null,null,null,null,150,null,null,null,null,null,25,null,null,null,null,null,150,null,null,50,null,null,null,null,null,null,null,119,null,null,9,null,null,null,null,null,null,null,null,null,null,null,null,null,null,null,null,null,null,null,null,null,null,null,null,null,null,null,null,null,null,null,null,null,null,null,null,null,null,null,null,null,null,null,7,7]
["FP001-012",935,null,null,null,95,85,375,1985,310,null,null,null,null,null,null,null,null,null,null,null,null,null,null,200,null,null,null,null,null,25,null,null,null,null,null,50,null,null,125,null,null,null,null,null,null,null,119,null,null,7,null,null,null,null,11,null,null,null,null,null,null,null,null,null,null,null,null,null,null,null,null,null,null,null,null,null,null,null,null,null,null,null,null,null,null,null,null,null,null,null,null,null,null,7,7]
["FP001-013",1410,null,null,null,null,335,170,2360,90,null,null,null,null,null,null,null,null,null,null,null,null,null,null,150,null,null,null,null,null,50,null,null,null,null,null,25,null,null,175,null,null,null,null,null,null,null,119,null,null,6,null,null,null,null,null,60,null,null,null,null,null,null,null,null,null,null,null,null,null,null,null,null,null,null,null,null,null,null,null,null,null,null,null,null,null,null,null,null,null,null,null,null,null,7,6,1]
["FP001-014",1320,null,null,null,null,170,231,1996,90,null,null,25,null,null,null,null,null,null,null,null,null,null,null,150,null,null,null,null,null,25,null,null,null,null,null,25,null,null,175,null,null,null,null,null,null,null,119,null,null,7,null,null,null,null,null,null,null,null,null,null,null,null,null,null,null,null,null,null,null,null,null,null,null,null,null,null,null,null,null,null,null,null,null,null,null,null,null,null,null,null,null,null,null,7,7]
["FP001-015",1330,null,null,null,null,230,190,2005,85,null,null,null,null,null,null,null,null,null,null,null,null,null,null,100,null,null,null,null,null,75,null,null,null,null,null,75,null,null,150,null,null,null,null,null,null,null,119,null,null,7,null,null,null,null,18,null,null,null,null,null,null,null,null,null,null,null,null,null,null,null,null,null,null,null,null,null,null,null,null,null,null,null,null,null,null,null,null,null,null,null,null,null,null,7,6,1]
["FP001-016",875,null,null,null,100,605,200,2040,170,null,null,null,null,null,50,null,null,null,null,null,null,null,null,75,null,null,null,null,null,25,null,null,null,null,null,100,null,null,150,null,null,null,null,null,null,null,120,null,null,7,null,null,null,null,36,null,null,null,null,null,null,null,null,null,null,null,null,null,null,null,null,null,null,null,null,null,null,null,null,null,null,null,null,null,null,null,null,null,null,null,null,null,null,8,5,1]
["FP001-017",1425,null,null,null,null,115,105,1850,170,null,null,null,null,null,null,null,null,null,null,null,null,null,null,150,null,null,null,null,null,null,null,null,null,null,null,100,null,null,150,null,null,null,null,null,null,null,112,null,null,5,null,null,null,null,null,null,null,null,null,null,null,null,null,null,null,null,null,null,null,null,null,null,null,null,null,null,null,null,null,null,null,null,null,null,null,null,null,null,null,null,null,null,null,7,7]
["FP001-018",1640,null,null,null,null,105,165,2120,125,null,null,25,null,null,null,null,null,null,null,null,null,null,null,125,null,null,null,null,null,null,null,null,null,null,null,100,null,null,150,null,null,null,null,null,null,null,112,null,null,7,null,null,null,null,null,null,null,null,null,null,null,null,null,null,null,null,null,null,null,null,null,null,null,null,null,null,null,null,null,null,null,null,null,null,null,null,null,null,null,null,null,null,null,7,7]
["FP001-019",1175,null,null,null,null,375,450,2286,126,null,null,25,null,null,null,null,null,null,null,null,null,null,null,125,null,null,null,null,null,null,null,null,null,null,null,150,null,null,75,null,null,null,null,null,null,null,119,null,null,7,null,null,null,null,null,null,null,0,null,null,null,null,null,null,null,null,null,null,null,null,null,null,null,null,null,null,null,null,null,null,null,null,null,null,null,null,null,null,null,null,null,null,null,7,7]
["FP001-020",1166,null,null,null,null,465,null,2122,341,null,null,null,null,null,null,null,null,null,null,null,null,null,null,125,null,null,null,null,null,null,null,null,null,null,null,75,null,null,200,null,null,null,null,null,null,null,112,null,null,5,null,null,null,null,null,null,null,null,null,null,null,null,null,null,null,null,null,null,null,null,null,null,null,null,null,null,null,null,null,null,null,null,null,null,null,null,null,null,null,null,null,null,null,8,6]
["FP001-021",1310,null,null,null,null,175,null,1980,355,null,null,null,null,null,25,null,null,null,null,null,null,null,null,175,null,null,null,null,null,25,null,null,null,null,null,100,null,null,100,null,null,null,null,null,null,null,107,null,null,6,null,null,null,null,10,null,null,null,null,null,null,null,null,null,null,null,null,null,null,null,null,null,null,null,null,null,null,null,null,null,null,null,null,null,null,null,null,null,null,null,null,null,null,7,6,null,1]
["FP001-022",1445,null,null,null,null,60,null,2505,830,null,null,25,null,null,50,null,null,null,null,null,null,null,null,125,null,null,null,null,null,75,null,null,null,null,null,75,null,null,75,null,null,null,null,null,null,null,107,null,null,4,1,1,null,null,null,null,125,null,null,null,null,null,null,null,null,null,null,null,null,null,null,null,null,null,null,null,null,null,null,null,null,null,null,null,null,null,null,null,null,null,null,null,null,7,6]
["FP001-023",1040,null,null,null,null,595,null,1915,280,null,null,50,null,null,null,null,null,null,null,null,null,null,null,125,null,null,null,null,null,null,null,null,null,null,null,125,null,null,125,null,null,null,null,null,null,null,110,null,null,4,null,null,null,null,31,null,null,null,null,null,null,null,null,null,null,null,null,null,null,null,null,null,null,null,null,null,null,null,null,null,null,null,null,null,null,null,null,null,null,null,null,null,null,7,5,1]
["FP001-024",1030,null,null,null,null,585,null,2075,320,null,null,null,null,null,50,null,null,null,null,null,null,null,null,null,null,null,null,null,null,25,null,null,null,null,null,225,null,null,175,null,null,null,null,null,null,null,107,null,null,6,null,null,null,null,null,null,null,null,null,null,null,null,null,null,null,null,null,null,null,null,null,null,null,null,null,null,null,null,null,null,null,null,null,null,null,null,null,null,null,null,null,null,null,7,6]
["FP001-025",1355,null,null,null,85,505,null,2365,190,null,null,25,null,null,25,null,null,null,null,null,null,null,null,75,null,null,null,null,null,null,null,null,null,null,null,150,null,null,175,null,null,null,null,null,null,null,107,null,null,6,1,1,null,null,null,null,120,null,null,null,null,null,null,null,null,null,null,null,null,null,null,null,null,null,null,null,null,null,null,null,null,null,null,null,null,null,null,null,null,null,null,null,null,7,6]
["FP001-026",920,null,null,null,175,685,null,2165,385,null,null,25,null,null,null,null,null,null,null,null,null,null,null,75,null,null,null,null,null,null,null,null,null,null,null,150,null,null,175,null,null,null,null,null,null,null,107,null,null,5,null,null,null,null,27,null,null,null,null,null,null,null,null,null,null,null,null,null,null,null,null,null,null,null,null,null,null,null,null,null,null,null,null,null,null,null,null,null,null,null,null,null,null,7,6]
["FP001-027",891,null,null,null,null,425,155,1726,255,null,null,25,null,null,null,null,null,25,null,null,null,null,null,50,null,null,null,null,null,null,null,null,null,null,null,150,null,null,125,null,null,null,null,null,null,null,95,null,null,6,1,1,null,null,14,null,105,null,null,null,null,null,null,null,null,null,null,null,null,null,null,null,null,null,null,null,null,null,null,null,null,null,null,null,null,null,null,null,null,null,null,null,null,7,4,1]
["FP001-028",1250,null,null,null,null,270,185,2145,440,null,null,null,null,null,null,null,null,null,null,null,null,null,null,75,null,null,null,null,null,null,null,null,null,null,null,100,null,null,200,null,null,null,null,null,null,null,114,null,null,6,null,null,null,null,20,null,null,null,null,null,null,null,null,null,null,null,null,null,null,null,null,null,null,null,null,null,null,null,null,null,null,null,null,null,null,null,null,null,null,null,null,null,null,6,6,1]
["FP001-029",1235,null,null,null,null,270,130,1975,340,null,null,null,null,null,25,null,null,null,null,null,null,null,null,175,null,null,null,null,null,50,null,null,null,null,null,75,null,null,75,null,null,null,null,null,null,null,129,null,null,5,null,null,null,null,null,37,null,null,null,null,null,null,null,null,null,null,null,null,null,null,null,null,null,null,null,null,null,null,null,null,null,null,null,null,null,null,null,null,null,null,null,null,null,5,7,1]
["FP001-030",750,null,null,null,null,495,135,1680,300,null,null,null,null,null,50,null,null,50,null,null,null,null,null,100,null,null,null,null,null,50,null,null,null,null,null,75,null,null,100,null,null,null,null,null,null,null,128,null,null,7,null,null,null,null,21,null,null,null,null,null,null,null,null,null,null,null,null,null,null,null,null,null,null,null,null,null,null,null,null,null,null,null,null,null,null,null,null,null,null,null,null,null,null,4,8,1]
["FP001-031",1475,null,null,null,null,435,285,2320,340,null,null,50,null,null,null,null,null,null,null,null,null,null,null,150,null,null,null,null,null,50,null,null,null,null,null,75,null,null,75,null,null,null,null,null,null,null,128,null,null,8,null,null,null,null,10,null,null,null,null,null,null,null,null,null,null,null,null,null,null,null,null,null,null,null,null,null,null,null,null,null,null,null,null,null,null,null,null,null,null,null,null,null,null,4,9]
["FP001-032",1021,55,null,null,null,220,55,1841,345,null,null,null,null,null,null,null,null,50,null,null,null,null,null,75,null,null,null,null,null,25,null,null,null,null,null,150,null,null,150,null,null,null,null,null,null,null,136,null,null,7,null,null,null,null,31,null,null,null,null,null,null,null,null,null,null,null,null,null,null,null,null,null,null,null,null,null,null,null,null,null,null,null,null,null,null,null,null,null,null,null,null,null,null,4,8,null,1]
["FP001-033",1270,null,null,null,null,195,null,1935,300,null,null,125,null,null,25,null,null,null,null,null,null,null,null,125,null,null,null,null,null,25,null,null,null,null,null,75,null,null,100,null,null,null,null,null,null,null,121,null,null,5,null,null,null,null,null,null,null,null,null,null,null,null,null,null,null,null,null,null,null,null,null,null,null,null,null,null,null,null,null,null,null,null,null,null,null,null,null,null,null,null,null,null,null,5,8]
["FP001-034",1135,null,null,null,null,340,null,1830,140,null,null,125,null,null,null,null,null,null,null,null,null,null,null,100,null,null,null,null,null,75,null,null,null,null,null,50,null,null,100,null,null,null,null,null,null,null,121,null,null,5,null,null,null,null,null,null,null,null,null,null,null,null,null,null,null,null,null,null,null,null,null,null,null,null,null,null,null,null,null,null,null,null,null,null,null,null,null,null,null,null,null,null,null,5,8]
["Total",null,null,null,null,null,null,null,null,null,null,null,null,null,null,null,null,null,null,{"$f":"SUM(T2:T35)","v":0},0,0,0,0,4300,0,0,0,0,0,1100,0,0,0,0,0,2950,0,0,4275,0,0,0,0,0,0,0,4076,0,0,211,4,4,1,0,{"$f":"SUM(BD2:BD35)","v":328},148,478,253,0,0,0,0,0,0,0,0,0,0,0,0,0,0,0,0,0,0,0,0,0,0,0,0,{"$f":"SUM(CF2:CF35)","v":0},{"$f":"SUM(CG2:CG35)","v":0},{"$f":"SUM(CH2:CH35)","v":0},{"$f":"SUM(CI2:CI35)","v":0},{"$f":"SUM(CJ2:CJ35)","v":0},0,0,0,0,0,{"$f":"SUM(CP2:CP35)","v":0},211,236,11,4]
["SHEET",{"$f":"B1","v":"B51"},"B51 (2)","B52","B53","MD67-2","MD67-4","MD67-7","TW300","LO345","PC21_288_FOC","PC21R_288_FOC","S23B_288_FOC","PC20_288_MFOC ","PC20R_288_MFOC","S23B_288_MFOC","PC21_144_FOC","PC21R_144_FOC","S23B_144_FOC","PC20_144_MFOC","PC20R_144_MFOC","S23B_144_MFOC","PC21_96_FOC","PC21R_96_FOC","S23B_96_FOC","PC20_96_MFOC","PC20R_96_MFOC","S23B_96_MFOC","PC21_72_FOC","PC21R_72_FOC","S23B_72_FOC","PC20_72_MFOC","PC20R_72_MFOC","S23B_72_MFOC","PC21_48_FOC","PC21R_48_FOC","S23B_48_FOC","PC21_24_FOC","PC21R_24_FOC","S23B_24_FOC","RR10A","RR10B","RR11A","RR12A","RR12B","RR19A","RR19B","SR20A","SR20B","SR22A","SC00-1","SC00-2B","SC00-2B","SC00-3B","CAB00-7",{"$f":"BD1","v":"FS01-3"},"FS01-5","FS01-7","FS01-9","PP-RP700","PP-RP701","PP-RP702","R720-2","R720-4","R720G-2","R720G-4","MES736A","MES736B","JIF740 24 FOC","JIG740 48 FOC","JIG740 72 FOC","JIG740 96 FOC","JIG741 144 FOC","JIG741 288 FOC","LASH750A(2)","LASH750A(3)","LASH750A(4)","LASH750A(5)","LASH750B(1)","LASH750B(2)","LASH750B(3)","LASH750B(4)","LASH750B(5)","OL751A 288 FOC","OL751A 144 FOC","OL751A 96 FOC","OL751A 72 FOC","OL751A 48 FOC","OL751A 24 FOC","M/T800","M/T804","M/T807","TREE822",{"$f":"CP1","v":"RE601-8"},"BOX-FP","BOX-1","BOX-2","BOX-3"]

{"sheet":"Sheet2","index":1,"n_rows":538,"n_cols":14,"rows_kept":538,"cut":false,"hidden":false,"merged":[]}
["UNIT_ID","SLACK_COIL","SLACK2","TRANS_PT","UNIT_IDSC00","UNIT_IDFS01","FOOTAGE","UNIT_ID2","UNIT_ID3","FOOTAGE","SPLC_NAME","BOX_NAME","COMMENTS","DC_ID"]
["BOX-1",null,0,"FP001-001",null,null,null,"SR20A",null,12]
["BOX-1","25'S23B_24_FOC;",25,"FP001-002","SC00-1",null,null,"SR20A",null,12]
["BOX-1","25'S23B_24_FOC;",25,"FP001-003","SC00-1",null,null,"SR20A",null,12]
["BOX-1",null,0,"FP001-004",null,null,null,"SR20A",null,12]
["BOX-1","25'S23B_96_FOC;50'S23B_144_FOC;",75,"FP001-005",null,null,null,"SR20A",null,12]
["BOX-1","25'S23B_96_FOC;25'S23B_96_FOC;",50,"FP001-006",null,null,null,"SR20A",null,12]
["BOX-3","50'S23B_288_FOC;50'S23B_288_FOC;25'S23B 48 FOC;",125,"FP001-007","SC00-2B","FS01-7",128,"SR20A",null,12]
["BOX-1","25'S23B_96_FOC;25'S23B_96_FOC;",50,"FP001-008","SC00-1",null,null,"SR20A",null,12]
["BOX-1","25'S23B_96_FOC;25'S23B_96_FOC;",50,"FP001-009","SC00-1",null,null,"SR20A",null,12]
["BOX-1","25'S23B_96_FOC;25'S23B_96_FOC;",50,"FP001-010","SC00-1",null,null,"SR20A",null,12]
["BOX-1","25'S23B_96_FOC;25'S23B_96_FOC;",50,"FP001-011","SC00-1",null,null,"SR20A",null,12]
["BOX-1","25'S23B_96_FOC;25'S23B_96_FOC;25'S23B_24_FOC;",75,"FP001-012","SC00-1","FS01-3",11,"SR20A",null,12]
["BOX-1","25'S23B_96_FOC;",50,"FP001-013","SC00-1",null,null,"SR20A",null,12]
["BOX-1","25'S23B_96_FOC;",0,"FP001-014","SC00-1",null,null,"SR20A",null,12]
["BOX-1","25'S23B_96_FOC;",50,"FP001-015","SC00-1",null,null,"SR20A",null,12]
["BOX-FP",null,0,"FP001-016",null,null,null,"SR20A",null,5]
["BOX-FP",null,0,"FP001-017",null,null,null,"SR20A",null,5]
["BOX-FP",null,0,"FP001-018",null,null,null,"SR20A",null,5]
["BOX-1",null,0,"FP001-019",null,null,null,"SR20A",null,12]
["BOX-FP",null,0,"FP001-020",null,null,null,"SR20A",null,5]
["BOX-FP",null,0,"FP001-021",null,null,null,"SR20A",null,5]
["BOX-FP",null,0,"FP001-022",null,null,null,"SR20A",null,5]
["BOX-FP",null,0,"FP001-023",null,null,null,"SR20A",null,5]
["BOX-FP",null,0,"FP001-024",null,null,null,"SR20A",null,5]
["BOX-FP",null,0,"FP001-025",null,null,null,"SR20A",null,5]
["BOX-FP",null,0,"FP001-026",null,null,null,"SR20A",null,5]
["BOX-FP",null,0,"FP001-027",null,null,null,"SR20A",null,5]
["BOX-1","25'S23B_24FOC",25,"FP001-028","SC00-1",null,null,"SR20A",null,12]
["BOX-1","25'S23B_24FOC",25,"FP001-029","SC00-1",null,null,"SR20A",null,12]
["BOX-1","25'S23B_24FOC",25,"FP001-030","SC00-1",null,null,"SR20A",null,12]
["BOX-1","25'S23B_24FOC",25,"FP001-031","SC00-1",null,null,"SR20A",null,12]
["BOX-1","25'S23B_24FOC",25,"FP001-032","SC00-1",null,null,"SR20A",null,12]
["BOX-FP",null,0,"FP001-033",null,null,null,"SR20A",null,5]
["BOX-FP",null,0,"FP001-034",null,null,null,"SR20A",null,5]
["BOX-FP",null,0,"FP001-001",null,null,null,"SR20A",null,5]
["BOX-FP",null,0,"FP001-002",null,null,null,"SR20A",null,5]
["BOX-FP",null,0,"FP001-003",null,null,null,"SR20A",null,5]
["BOX-FP",null,0,"FP001-004",null,null,null,"SR20A",null,5]
["BOX-FP",null,0,"FP001-005",null,null,null,"SR20A",null,5]
["BOX-FP",null,0,"FP001-006",null,null,null,"SR20A",null,5]
["BOX-FP",null,0,"FP001-007",null,null,null,"SR20A",null,5]
["BOX-FP",null,0,"FP001-008",null,null,null,"SR20A",null,5]
["BOX-FP",null,0,"FP001-009",null,null,null,"SR20A",null,5]
["BOX-FP",null,0,"FP001-010",null,null,null,"SR20A",null,5]
["BOX-FP",null,0,"FP001-011",null,null,null,"SR20A",null,5]
["BOX-FP",null,0,"FP001-012",null,null,null,"SR20A",null,5]
["BOX-FP",null,0,"FP001-013",null,null,null,"SR20A",null,5]
["BOX-FP",null,0,"FP001-014",null,null,null,"SR20A",null,5]
["BOX-FP",null,0,"FP001-015",null,null,null,"SR20A",null,5]
["BOX-FP",null,0,"FP001-016",null,null,null,"SR20A",null,5]
["BOX-FP",null,0,"FP001-017",null,null,null,"SR20A",null,5]
["BOX-FP",null,0,"FP001-018",null,null,null,"SR20A",null,5]
["BOX-FP",null,0,"FP001-019",null,null,null,"SR20A",null,5]
["BOX-FP",null,0,"FP001-020",null,null,null,"SR20A",null,5]
["BOX-FP",null,0,"FP001-021",null,null,null,"SR20A",null,5]
["BOX-FP",null,0,"FP001-022",null,null,null,"SR20A",null,5]
["BOX-FP",null,0,"FP001-023",null,null,null,"SR20A",null,5]
["BOX-FP",null,0,"FP001-024",null,null,null,"SR20A",null,5]
["BOX-FP",null,0,"FP001-025",null,null,null,"SR20A",null,5]
["BOX-FP",null,0,"FP001-026",null,null,null,"SR20A",null,5]
["BOX-FP",null,0,"FP001-027",null,null,null,"SR20A",null,5]
["BOX-FP",null,0,"FP001-028",null,null,null,"SR20A",null,5]
["BOX-FP",null,0,"FP001-029",null,null,null,"SR20A",null,5]
["BOX-FP",null,0,"FP001-030",null,null,null,"SR20A",null,5]
["BOX-FP",null,0,"FP001-031",null,null,null,"SR20A",null,5]
["BOX-FP",null,0,"FP001-032",null,null,null,"SR20A",null,5]
["BOX-FP",null,0,"FP001-033",null,null,null,"SR20A",null,5]
["BOX-FP",null,0,"FP001-034",null,null,null,"SR20A",null,5]
["BOX-FP",null,0,"FP001-001",null,null,null,"SR20A",null,5]
["BOX-FP",null,0,"FP001-002",null,null,null,"SR20A",null,5]
["BOX-FP",null,0,"FP001-003",null,null,null,"SR20A",null,5]
["BOX-FP",null,0,"FP001-004",null,null,null,"SR20A",null,5]
["BOX-FP",null,0,"FP001-005",null,null,null,"SR20A",null,5]
["BOX-FP",null,0,"FP001-006",null,null,null,"SR20A",null,5]
["BOX-FP",null,0,"FP001-007",null,null,null,"SR20A",null,5]
["BOX-FP",null,0,"FP001-008",null,null,null,"SR20A",null,5]
["BOX-FP",null,0,"FP001-009",null,null,null,"SR20A",null,5]
["BOX-FP",null,0,"FP001-010",null,null,null,"SR20A",null,5]
["BOX-FP",null,0,"FP001-011",null,null,null,"SR20A",null,5]
["BOX-FP",null,0,"FP001-012",null,null,null,"SR20A",null,5]
["BOX-FP",null,0,"FP001-013",null,null,null,"SR20A",null,5]
["BOX-FP",null,0,"FP001-014",null,null,null,"SR20A",null,5]
["BOX-FP",null,0,"FP001-015",null,null,null,"SR20A",null,5]
["BOX-FP",null,0,"FP001-016",null,null,null,"SR20A",null,5]
["BOX-FP",null,0,"FP001-017",null,null,null,"SR20A",null,5]
["BOX-FP",null,0,"FP001-018",null,null,null,"SR20A",null,5]
["BOX-FP",null,0,"FP001-019",null,null,null,"SR20A",null,5]
["BOX-FP",null,0,"FP001-020",null,null,null,"SR20A",null,5]
["BOX-FP",null,0,"FP001-021",null,null,null,"SR20A",null,5]
["BOX-FP",null,0,"FP001-022",null,null,null,"SR20A",null,5]
["BOX-FP",null,0,"FP001-023",null,null,null,"SR20A",null,5]
["BOX-FP",null,0,"FP001-024",null,null,null,"SR20A",null,5]
["BOX-FP",null,0,"FP001-025",null,null,null,"SR20A",null,5]
["BOX-FP",null,0,"FP001-026",null,null,null,"SR20A",null,5]
["BOX-FP",null,0,"FP001-027",null,null,null,"SR20A",null,5]
["BOX-FP",null,0,"FP001-028",null,null,null,"SR20A",null,5]
["BOX-FP",null,0,"FP001-029",null,null,null,"SR20A",null,5]
["BOX-FP",null,0,"FP001-030",null,null,null,"SR20A",null,5]
["BOX-FP",null,0,"FP001-031",null,null,null,"SR20A",null,5]
["BOX-FP",null,0,"FP001-032",null,null,null,"SR20A",null,5]
["BOX-FP",null,0,"FP001-033",null,null,null,"SR20A",null,5]
["BOX-FP",null,0,"FP001-034",null,null,null,"SR20A",null,5]
["BOX-FP",null,0,"FP001-001",null,null,null,"SR20A",null,5]
["BOX-FP",null,0,"FP001-002",null,null,null,"SR20A",null,5]
["BOX-FP",null,0,"FP001-003",null,null,null,"SR20A",null,5]
["BOX-FP",null,0,"FP001-004",null,null,null,"SR20A",null,5]
["BOX-FP",null,0,"FP001-005",null,null,null,"SR20A",null,5]
["BOX-FP",null,0,"FP001-006",null,null,null,"SR20A",null,5]
["BOX-FP",null,0,"FP001-007",null,null,null,"SR20A",null,5]
["BOX-FP",null,0,"FP001-008",null,null,null,"SR20A",null,5]
["BOX-FP",null,0,"FP001-009",null,null,null,"SR20A",null,5]
["BOX-FP",null,0,"FP001-010",null,null,null,"SR20A",null,5]
["BOX-FP",null,0,"FP001-011",null,null,null,"SR20A",null,5]
["BOX-FP",null,0,"FP001-012",null,null,null,"SR20A",null,5]
["BOX-FP",null,0,"FP001-013",null,null,null,"SR20A",null,5]
["BOX-FP",null,0,"FP001-014",null,null,null,"SR20A",null,5]
["BOX-FP",null,0,"FP001-015",null,null,null,"SR20A",null,5]
["BOX-FP",null,0,"FP001-016",null,null,null,"SR20A",null,5]
["BOX-FP",null,0,"FP001-017",null,null,null,"SR20A",null,5]
["BOX-FP",null,0,"FP001-018",null,null,null,"SR20A",null,5]
["BOX-FP",null,0,"FP001-019",null,null,null,"SR20A",null,5]
["BOX-FP",null,0,"FP001-020",null,null,null,"SR20A",null,5]
["BOX-3",null,0,"FP001-021"]
["EX. BOX-3",null,0,"FP001-022"]
["EX. BOX-3",null,0,"FP001-023"]
["EX. BOX-2","25'S23B_48_FOC;",25,"FP001-024","SC00-1"]
["EX. BOX-2","25'S23B_48_FOC;",50,"FP001-025","SC00-1"]
["EX. BOX-2","25'S23B_48_FOC;",25,"FP001-026","SC00-1"]
["EX. BOX-2","25'S23B_48_FOC;",25,"FP001-027","SC00-1"]
["EX. BOX-2","25'S23B_48_FOC;",25,"FP001-028","SC00-1"]
["EX. BOX-2","25'S23B_48_FOC;",25,"FP001-029","SC00-1"]
["EX. BOX-2","25'S23B_48_FOC;",25,"FP001-030","SC00-1"]
["EX. BOX-2","25'S23B_48_FOC;",25,"FP001-031","SC00-1"]
["EX. BOX-2","25'S23B_24_FOC;25'S23B_48_FOC;",50,"FP001-032","SC00-1","FS01-3",9]
["EX. BOX-2","25'S23B_48_FOC;",25,"FP001-033","SC00-1"]
["EX. BOX-2","25'S23B_48_FOC;",25,"FP001-034","SC00-1"]
["EX. BOX-2","25'S23B_48_FOC;",25,"FP001-001","SC00-1"]
["EX. BOX-2","25'S23B_72_FOC;",25,"FP001-002","SC00-1"]
["EX. BOX-2","25'S23B_72_FOC;",25,"FP001-003","SC00-1"]
["EX. BOX-2","25'S23B_72_FOC;",25,"FP001-004","SC00-1"]
["EX. BOX-2","25'S23B_72_FOC;",25,"FP001-005"]
["EX. BOX-2","25'S23B_96_FOC;",25,"FP001-006","SC00-1"]
["EX. BOX-3",null,0,"FP001-007"]
["EX. BOX-2","25'S23B_96_FOC;",25,"FP001-008","SC00-1"]
["EX. BOX-2","25'S23B_96_FOC;25'S23B_72_FOC;",50,"FP001-009","SC00-1","FS01-5",51]
["EX. BOX-2","25'S23B_96_FOC;",25,"FP001-010","SC00-1"]
["EX. BOX-2","25'S23B_96_FOC;",25,"FP001-011","SC00-1"]
["EX. BOX-2","25'S23B_96_FOC;",25,"FP001-012"]
["EX. BOX-2","25'S23B_96_FOC;",25,"FP001-013","SC00-1"]
["EX. BOX-2","25'S23B_96_FOC;",25,"FP001-014","SC00-1"]
["EX. BOX-2","25'S23B_24_FOC;",25,"FP001-015","SC00-1"]
["EX. BOX-2",null,25,"FP001-016"]
["EX. BOX-2",null,25,"FP001-017","SC00-1"]
["EX. BOX-2",null,25,"FP001-018","SC00-1"]
["EX. BOX-2",null,25,"FP001-019","SC00-1","FS01-9"]
["EX. BOX-2",null,0,"FP001-020"]
["EX. BOX-2","25'S23B_24_FOC;25'S23B_96_FOC;",50,"FP001-021","SC00-1 (OR013.2.3)","FS01-3",10]
["EX. BOX-2","50'S23B_288_MFOC;25'S23B_96_FOC;25'S23B_48_FOC;",100,"FP001-022","SC00-2B","FS01-7",125]
["EX. BOX-2","25'S23B_96_FOC;",25,"FP001-023"]
["EX. BOX-2","25'S23B_96_FOC;",25,"FP001-024","SC00-1"]
["EX. BOX-2","25'S23B_288_MFOC;50'S23B_288_MFOC;25'S23B_96_FOC;25'S23B_48_FOC;",125,"FP001-025","SC00-2B","FS01-7",120]
["EX. BOX-2",null,0,"FP001-026"]
["EX. BOX-2","25'S23B_288_MFOC;25'S23B_96_FOC;25'S23B_24_FOC;",25,"FP001-027","SC00-2B","FS01-7",105]
["EX. BOX-3",null,0,"FP001-028"]
["EX. BOX-3",null,0,"FP001-029"]
["EX. BOX-2","25'S23B_24_FOC;25'S23B_72_FOC;",50,"FP001-030","SC00-1","FS01-3",21]
["EX. BOX-1","25'S23B_24_FOC;25'S23B_72_FOC;",50,"FP001-031","SC00-1","FS01-3",10]
["EX. BOX-3",null,0,"FP001-032"]
["EX. BOX-2","25'S23B_48_FOC;",25,"FP001-033","SC00-1"]
["EX. BOX-3",null,0,"FP001-034"]
["EX. BOX-3","50'S23B_288_FOC;50'S23B_288_FOC;50'S23B_144_FOC;",150,"FP001-001"]
["EX. BOX-3","25'S23B_288_MFOC;25'S23B_288_MFOC;",50,"FP001-002"]
["EX. BOX-3",null,0,"FP001-003"]
["EX. BOX-3",null,0,"FP001-004"]
["EX. BOX-3",null,0,"FP001-005"]
["EX. BOX-3","25'S23B_72_FOC;",0,"FP001-006"]
["EX. BOX-1","25'S23B_24_FOC;",25,"FP001-007","SC00-1"]
["EX BOX-1","25'S23B_24_FOC;",25,"FP001-008","SC00-1"]
["EX. BOX-1","25'S23B_24_FOC;",25,"FP001-009","SC00-1"]
["EX. BOX-1","25'S23B_24_FOC;",25,"FP001-010","SC00-1"]
["EX. BOX-1","25'S23B_24_FOC;",25,"FP001-011","SC00-1"]
["EX. BOX-1","25'S23B_288_FOC;25'S23B_48_FOC;",50,"FP001-012","SC00-1"]
["EX. BOX-3",null,0,"FP001-013"]
["EX. BOX-3",null,0,"FP001-014"]
["EX. BOX-2","25'S23B_24_FOC;25'S23B_72_FOC;",50,"FP001-015"]
["EX. BOX-1","25'S23B_288_FOC;25'S23B_48_FOC;",50,"FP001-016","SC00-1"]
["EX. BOX-2","25'S23B_48_FOC;",25,"FP001-017","SC00-1"]
["EX. BOX-2","25'S23B_24_FOC;25'S23B_48_FOC;",50,"FP001-018","SC00-1","FS01-10"]
["EX. BOX-2","25'S23B_48_FOC;",25,"FP001-019","SC00-1"]
["EX. BOX-3","25'S23B_48_FOC;",25,"FP001-020","SC00-1"]
["EX. BOX-3","25'S23B_48_FOC;",25,"FP001-021","SC00-1"]
["EX. BOX-3",null,0,"FP001-022"]
["EX. BOX-3",null,0,"FP001-023"]
["EX. BOX-3",null,0,"FP001-024"]
["EX. BOX-3","25'S23B_72_FOC;",25,"FP001-025"]
["EX. BOX-3","50'S23B_288_FOC;25'S23B_48_FOC;",75,"FP001-026","SC00-1","FS01-3",27]
["EX. BOX-3","25'S23B_288_FOC;25'S23B_288_FOC;25'S23B_144_FOC;",75,"FP001-027","SC00-1"]
["BOX-1",null,0,"FP001-028",null,null,null,"SR20A",null,12]
["BOX-1",null,0,"FP001-029",null,null,null,"SR20A",null,12]
["BOX-1","25'S23B_24_FOC;",25,"FP001-030","SC00-1",null,null,"SR20A",null,12]
["BOX-1",null,0,"FP001-031",null,null,null,"SR20A",null,12]
["BOX-1",null,0,"FP001-032",null,null,null,"SR20A",null,12]
["BOX-1",null,0,"FP001-033",null,null,null,"SR20A",null,12]
["BOX-1",null,0,"FP001-034",null,null,null,"SR20A",null,12]
["BOX-1",null,0,"FP001-001",null,null,null,"SR20A",null,12]
["BOX-1",null,0,"FP001-002",null,null,null,"SR20A",null,12]
["BOX-1",null,0,"FP001-003",null,null,null,"SR20A",null,12]
["BOX-1",null,0,"FP001-004",null,null,null,"SR20A",null,12]
["BOX-1",null,0,"FP001-005",null,null,null,"SR20A",null,12]
["BOX-1",null,0,"FP001-006",null,null,null,"SR20A",null,12]
["BOX-1",null,0,"FP001-007",null,null,null,"SR20A",null,12]
["BOX-1",null,0,"FP001-008",null,null,null,"SR20A",null,12]
["BOX-1","25'S23B_72_FOC;",25,"FP001-009","SC00-1",null,null,"SR20A",null,12]
["BOX-1","25'S23B_24_FOC;",25,"FP001-010","SC00-1",null,null,"SR20A",null,12]
["BOX-1","25'S23B_24_FOC;",25,"FP001-011","SC00-1",null,null,"SR20A",null,12]
["BOX-1","25'S23B_24_FOC;",25,"FP001-012","SC00-1",null,null,"SR20A",null,12]
["BOX-1","25'S23B_24_FOC;",25,"FP001-013","SC00-1",null,null,"SR20A",null,12]
["BOX-1","25'S23B_72_FOC;",25,"FP001-014","SC00-1",null,null,"SR20A",null,12]
["BOX-2","25'S23B_96_FOC;25'S23B_24_FOC;",25,"FP001-015","SC00-1","FS01-3",18,"SR20A",null,12]
["BOX-1","25'S23B_96_FOC;",25,"FP001-016","SC00-1",null,null,"SR20A",null,12]
["BOX-1","25'S23B_96_FOC;",25,"FP001-017","SC00-1",null,null,"SR20A",null,12]
["BOX-1","25'S23B_96_FOC;",25,"FP001-018","SC00-1",null,null,"SR20A",null,12]
["BOX-1","25'S23B_96_FOC;",25,"FP001-019","SC00-1",null,null,"SR20A",null,12]
["BOX-1","25'S23B_96_FOC;",25,"FP001-020","SC00-1",null,null,"SR20A",null,12]
["BOX-1","25'S23B_24_FOC;",25,"FP001-021","SC00-1",null,null,"SR20A",null,12]
["BOX-1","25'S23B_24_FOC;",25,"FP001-022","SC00-1",null,null,"SR20A",null,12]
["BOX-1","25'S23B_24_FOC;",25,"FP001-023","SC00-1",null,null,"SR20A",null,12]
["BOX-1","25'S23B_24_FOC;",25,"FP001-024","SC00-1",null,null,"SR20A",null,12]
["BOX-1","25'S23B_24_FOC;",25,"FP001-025","SC00-1",null,null,"SR20A",null,12]
["BOX-1","25'S23B_24_FOC;",25,"FP001-026","SC00-1",null,null,"SR20A",null,12]
["BOX-1","25'S23B_24_FOC;",25,"FP001-027","SC00-1",null,null,"SR20A",null,12]
["BOX-1","25'S23B_48_FOC;",25,"FP001-028","SC00-1",null,null,"SR20A",null,12]
["BOX-1","25'S23B_48_FOC;",25,"FP001-029","SC00-1",null,null,"SR20A",null,12]
["BOX-1","25'S23B_48_FOC;",25,"FP001-030","SC00-1",null,null,"SR20A",null,12]
["BOX-1","25'S23B_48_FOC;",25,"FP001-031","SC00-1",null,null,"SR20A",null,12]
["BOX-1","25'S23B_48_FOC;",25,"FP001-032","SC00-1",null,null,"SR20A",null,12]
["BOX-1","25'S23B_48_FOC;",25,"FP001-033","SC00-1",null,null,"SR20A",null,12]
["BOX-1","25'S23B_48_FOC;",25,"FP001-034","SC00-1",null,null,"SR20A",null,12]
["BOX-1","25'S23B_48_FOC;",25,"FP001-001","SC00-1",null,null,"SR20A",null,12]
["BOX-1","25'S23B_48_FOC;",25,"FP001-002","SC00-1",null,null,"SR20A",null,12]
["BOX-1","25'S23B_48_FOC;",25,"FP001-003","SC00-1",null,null,"SR20A",null,12]
["BOX-1","25'S23B_48_FOC;",25,"FP001-004","SC00-1",null,null,"SR20A",null,12]
["BOX-1","25'S23B_48_FOC;",25,"FP001-005","SC00-1",null,null,"SR20A",null,12]
["BOX-1","25'S23B_48_FOC;",25,"FP001-006","SC00-1",null,null,"SR20A",null,12]
["BOX-1","25'S23B_48_FOC;",25,"FP001-007","SC00-1",null,null,"SR20A",null,12]
["BOX-1","25'S23B_96_FOC;",25,"FP001-008","SC00-1",null,null,"SR20A",null,12]
["BOX-1","25'S23B_96_FOC;",25,"FP001-009","SC00-1",null,null,"SR20A",null,12]
["BOX-1","25'S23B_96_FOC;",25,"FP001-010","SC00-1",null,null,"SR20A",null,12]
["BOX-1","25'S23B_96_FOC;",25,"FP001-011","SC00-1",null,null,"SR20A",null,12]
["BOX-1","25'S23B_96_FOC;",25,"FP001-012","SC00-1",null,null,"SR20A",null,12]
["BOX-1","25'S23B_96_FOC;",25,"FP001-013","SC00-1",null,null,"SR20A",null,12]
["BOX-1","25'S23B_96_FOC;",25,"FP001-014","SC00-1",null,null,"SR20A",null,12]
["BOX-1","25'S23B_96_FOC;",25,"FP001-015","SC00-1",null,null,"SR20A",null,12]
["BOX-1","25'S23B_96_FOC;",25,"FP001-016","SC00-1",null,null,"SR20A",null,12]
["BOX-1","25'S23B_96_FOC;",25,"FP001-017","SC00-1",null,null,"SR20A",null,12]
["BOX-1","25'S23B_24_FOC;",25,"FP001-018","SC00-1",null,null,"SR20A",null,12]
["BOX-1","25'S23B_24_FOC;",25,"FP001-019","SC00-1",null,null,"SR20A",null,12]
["BOX-1","25'S23B_24_FOC;",25,"FP001-020","SC00-1",null,null,"SR20A",null,12]
["BOX-1","25'S23B_24_FOC;",25,"FP001-021","SC00-1",null,null,"SR20A",null,12]
["BOX-1",null,0,"FP001-022",null,null,null,"SR20A",null,12]
["BOX-2","25'S23B_96_FOC;25'S23B_48_FOC;25'S23_24_FOC;",75,"FP001-023","SC00-1","FS01-3",31,"SR20A",null,15]
["BOX-1","25'S23B_24_FOC;",25,"FP001-024","SC00-1",null,null,"SR20A",null,12]
["BOX-1","25'S23B_24_FOC;",25,"FP001-025","SC00-1",null,null,"SR20A",null,12]
["BOX-1",null,0,"FP001-026",null,null,null,"SR20A",null,12]
["BOX-2","25'S23B_72_FOC;25'S23B_24_FOC;",50,"FP001-027","SC00-1","FS01-3",14,"SR20A",null,12]
["BOX-1",null,0,"FP001-028",null,null,null,"SR20A",null,12]
["BOX-1",null,0,"FP001-029",null,null,null,"SR20A",null,12]
["BOX-1",null,0,"FP001-030",null,null,null,"SR20A",null,12]
["BOX-1",null,0,"FP001-031",null,null,null,"SR20A",null,12]
["BOX-1",null,0,"FP001-032",null,null,null,"SR20A",null,12]
["BOX-1",null,0,"FP001-033",null,null,null,"SR20A",null,12]
["BOX-1",null,0,"FP001-034",null,null,null,"SR20A",null,12]
["BOX-1",null,0,"FP001-001",null,null,null,"SR20A",null,12]
["BOX-1",null,0,"FP001-002",null,null,null,"SR20A",null,12]
["BOX-1",null,0,"FP001-003",null,null,null,"SR20A",null,12]
["BOX-1",null,0,"FP001-004",null,null,null,"SR20A",null,12]
["BOX-1",null,0,"FP001-005",null,null,null,"SR20A",null,12]
["BOX-1",null,0,"FP001-006",null,null,null,"SR20A",null,12]
["BOX-1",null,0,"FP001-007",null,null,null,"SR20A",null,12]
["BOX-1","25'S23B_72_FOC;",25,"FP001-008","SC00-1",null,null,"SR20A",null,12]
["BOX-1","25'S23B_48_FOC;25'S23B_96_FOC;",50,"FP001-009","SC00-1","FS01-3",29,"SR20A",null,12]
["BOX-3","25'S23B_288_FOC;25'S23B_96_FOC;25'S23B_96_FOC;25'S23B_72_FOC;",100,"FP001-010","SC00-3B","FS01-9",253,"SR20A",null,12]
["BOX-FP",null,0,"FP001-011",null,null,null,"SR20A",null,5]
["BOX-FP",null,0,"FP001-012",null,null,null,"SR20A",null,5]
["BOX-FP",null,0,"FP001-013",null,null,null,"SR20A",null,5]
["BOX-FP",null,0,"FP001-014",null,null,null,"SR20A",null,5]
["BOX-FP",null,0,"FP001-015",null,null,null,"SR20A",null,5]
["BOX-FP",null,0,"FP001-016",null,null,null,"SR20A",null,5]
["BOX-FP",null,0,"FP001-017",null,null,null,"SR20A",null,5]
["BOX-FP",null,0,"FP001-018",null,null,null,"SR20A",null,5]
["BOX-FP",null,0,"FP001-019",null,null,null,"SR20A",null,5]
["BOX-FP",null,0,"FP001-020",null,null,null,"SR20A",null,5]
["BOX-FP",null,0,"FP001-021",null,null,null,"SR20A",null,5]
["BOX-FP",null,0,"FP001-022",null,null,null,"SR20A",null,5]
["BOX-FP",null,0,"FP001-023",null,null,null,"SR20A",null,5]
["BOX-FP",null,0,"FP001-024",null,null,null,"SR20A",null,5]
["BOX-FP",null,0,"FP001-025",null,null,null,"SR20A",null,5]
["BOX-FP",null,0,"FP001-026",null,null,null,"SR20A",null,5]
["BOX-FP",null,0,"FP001-027",null,null,null,"SR20A",null,5]
["BOX-FP",null,0,"FP001-028",null,null,null,"SR20A",null,5]
["BOX-FP",null,0,"FP001-029",null,null,null,"SR20A",null,5]
["BOX-FP",null,0,"FP001-030",null,null,null,"SR20A",null,5]
["BOX-FP",null,0,"FP001-031",null,null,null,"SR20A",null,5]
["BOX-FP",null,0,"FP001-032",null,null,null,"SR20A",null,5]
["BOX-FP",null,0,"FP001-033",null,null,null,"SR20A",null,5]
["BOX-FP",null,0,"FP001-034",null,null,null,"SR20A",null,5]
["BOX-FP",null,0,"FP001-001",null,null,null,"SR20A",null,5]
["BOX-FP",null,0,"FP001-002",null,null,null,"SR20A",null,5]
["BOX-FP",null,0,"FP001-003",null,null,null,"SR20A",null,5]
["BOX-FP",null,0,"FP001-004",null,null,null,"SR20A",null,5]
["BOX-FP",null,0,"FP001-005",null,null,null,"SR20A",null,5]
["BOX-FP",null,0,"FP001-006",null,null,null,"SR20A",null,5]
["BOX-FP",null,0,"FP001-007",null,null,null,"SR20A",null,5]
["BOX-FP",null,0,"FP001-008",null,null,null,"SR20A",null,5]
["BOX-FP",null,0,"FP001-009",null,null,null,"SR20A",null,5]
["BOX-FP",null,0,"FP001-010",null,null,null,"SR20A",null,5]
["BOX-FP",null,0,"FP001-011",null,null,null,"SR20A",null,5]
["BOX-FP",null,0,"FP001-012",null,null,null,"SR20A",null,5]
["BOX-FP",null,0,"FP001-013",null,null,null,"SR20A",null,5]
["BOX-FP",null,0,"FP001-014",null,null,null,"SR20A",null,5]
["BOX-FP",null,0,"FP001-015",null,null,null,"SR20A",null,5]
["BOX-FP",null,0,"FP001-016",null,null,null,"SR20A",null,5]
["BOX-FP",null,0,"FP001-017",null,null,null,"SR20A",null,5]
["BOX-FP",null,0,"FP001-018",null,null,null,"SR20A",null,5]
["BOX-FP",null,0,"FP001-019",null,null,null,"SR20A",null,5]
["BOX-FP",null,0,"FP001-020",null,null,null,"SR20A",null,5]
["BOX-FP",null,0,"FP001-021",null,null,null,"SR20A",null,5]
["BOX-FP",null,0,"FP001-022",null,null,null,"SR20A",null,5]
["BOX-FP",null,0,"FP001-023",null,null,null,"SR20A",null,5]
["BOX-FP",null,0,"FP001-024",null,null,null,"SR20A",null,5]
["BOX-FP",null,0,"FP001-025",null,null,null,"SR20A",null,5]
["BOX-FP",null,0,"FP001-026",null,null,null,"SR20A",null,5]
["BOX-FP",null,0,"FP001-027",null,null,null,"SR20A",null,5]
["BOX-FP",null,0,"FP001-028",null,null,null,"SR20A",null,5]
["BOX-FP",null,0,"FP001-029",null,null,null,"SR20A",null,5]
["BOX-1","25'S23B_24_FOC;",25,"FP001-030","SC00-1",null,null,"SR20A",null,12]
["BOX-1","50'S23B_24_FOC;",50,"FP001-031","SC00-1",null,null,"SR20A",null,12]
["BOX-1","50'S23B_24_FOC;",50,"FP001-032","SC00-1",null,null,"SR20A",null,12]
["BOX-1",null,0,"FP001-033",null,null,null,"SR20A",null,12]
["BOX-1","25'S23B_24_FOC;",25,"FP001-034","SC00-1",null,null,"SR20A",null,12]
["BOX-1",null,0,"FP001-001",null,null,null,"SR20A",null,12]
["BOX-1",null,0,"FP001-002",null,null,null,"SR20A",null,12]
["BOX-1","25'S23B_24_FOC;",25,"FP001-003","SC00-1",null,null,"SR20A",null,12]
["BOX-1","25'S23B_24_FOC;",25,"FP001-004","SC00-1",null,null,"SR20A",null,12]
["BOX-1","25'S23B_24_FOC;",25,"FP001-005",null,null,null,"SR20A",null,12]
["BOX-1","25'S23B_24_FOC;",25,"FP001-006","SC00-1",null,null,"SR20A",null,12]
["BOX-1","25'S23B_72_FOC;",25,"FP001-007","SC00-1",null,null,"SR20A",null,12]
["BOX-1","25'S23B_72_FOC;",25,"FP001-008","SC00-1",null,null,"SR20A",null,12]
["BOX-1","25'S23B_72_FOC;",25,"FP001-009","SC00-1",null,null,"SR20A",null,12]
["BOX-1","25'S23B_72_FOC;",25,"FP001-010","SC00-1",null,null,"SR20A",null,12]
["BOX-1","25'S23B_96_FOC;",25,"FP001-011","SC00-1",null,null,"SR20A",null,12]
["BOX-1","25'S23B_24_FOC;",25,"FP001-012","SC00-1",null,null,"SR20A",null,12]
["BOX-1","25'S23B_24_FOC;",25,"FP001-013",null,null,null,"SR20A",null,12]
["BOX-1","25'S23B_24_FOC;",25,"FP001-014","SC00-1",null,null,"SR20A",null,12]
["BOX-1","25'S23B_72_FOC;",25,"FP001-015","SC00-1",null,null,"SR20A",null,12]
["BOX-2","25'S23B_24_FOC;50'S23B_72_FOC;",75,"FP001-016","SC00-1","FS01-3",16,"SR20A",null,20]
["BOX-1",null,0,"FP001-017",null,null,null,"SR20A",null,12]
["BOX-1","25'S23B_24_FOC;",25,"FP001-018","SC00-1",null,null,"SR20A",null,12]
["BOX-1","25'S23B_24_FOC;",25,"FP001-019","SC00-1",null,null,"SR20A",null,12]
["BOX-1","25'S23B_24_FOC;",25,"FP001-020","SC00-1",null,null,"SR20A",null,12]
["BOX-1","25'S23B_48_FOC;",25,"FP001-021","SC00-1",null,null,"SR20A",null,12]
["BOX-1","25'S23B_48_FOC;",25,"FP001-022","SC00-1",null,null,"SR20A",null,12]
["BOX-1",null,0,"FP001-023",null,null,null,"SR20A",null,12]
["BOX-1","25'S23B_48_FOC;",25,"FP001-024","SC00-1",null,null,"SR20A",null,12]
["BOX-1","25'S23B_48_FOC;",25,"FP001-025","SC00-1",null,null,"SR20A",null,12]
["BOX-1","25'S23B_48_FOC;",25,"FP001-026","SC00-1",null,null,"SR20A",null,12]
["BOX-1","50'S23B_48_FOC;",50,"FP001-027","SC00-1",null,null,"SR20A",null,12]
["BOX-1","50'S23B_48_FOC;",50,"FP001-028","SC00-1",null,null,"SR20A",null,12]
["BOX-2","50'S23B_24_FOC;50'S23B_48_FOC;",100,"FP001-029","SC00-1","FS01-5",37,"SR20A",null,20]
["BOX-1","25'S23B_24_FOC;25'S23B_24_FOC;",50,"FP001-030",null,null,null,"SR20A",null,12]
["BOX-1","25'S23B_24_FOC;",25,"FP001-031","SC00-1",null,null,"SR20A",null,12]
["BOX-1","25'S23B_24_FOC;",25,"FP001-032","SC00-1",null,null,"SR20A",null,12]
["BOX-1","25'S23B_24_FOC;",25,"FP001-033",25,null,null,"SR20A",null,12]
["BOX-1","25'S23B_24_FOC;",25,"FP001-034","SC00-1",null,null,"SR20A",null,12]
["BOX-2","50'S23B_24_FOC;25'S23B_96_FOC;",75,"FP001-001","SC00-1","FS01-3",21,"SR20A",null,12]
["BOX-1","25'S23B_96_FOC;",25,"FP001-002","SC00-1",null,null,"SR20A",null,12]
["BOX-1","25'S23B_96_FOC;",25,"FP001-003","SC00-1",null,null,"SR20A",null,12]
["BOX-1","25'S23B_96_FOC;",25,"FP001-004",null,null,null,"SR20A",null,12]
["BOX-1",null,0,"FP001-005",null,null,null,"SR20A",null,12]
["BOX-1","25'S23B_96_FOC;",25,"FP001-006","SC00-1",null,null,"SR20A",null,12]
["BOX-1","25'S23B_96_FOC;",25,"FP001-007","SC00-1",null,null,"SR20A",null,12]
["BOX-1","25'S23B_96_FOC;",25,"FP001-008","SC00-1",null,null,"SR20A",null,12]
["BOX-1","25'S23B_96_FOC;",25,"FP001-009","SC00-1",null,null,"SR20A",null,12]
["BOX-1",null,0,"FP001-010",null,null,null,"SR20A",null,12]
["BOX-1","25'S23B_96_FOC;",25,"FP001-011","SC00-1",null,null,"SR20A",null,12]
["BOX-1","25'S23B_96_FOC;",25,"FP001-012","SC00-1",null,null,"SR20A",null,12]
["BOX-2","50'S23B_48_FOC;50'S23B_96_FOC;",100,"FP001-013","SC00-1","FS01-5",60,"SR20A",null,12]
["BOX-1","25'S23B_24_FOC;",25,"FP001-014","SC00-1",null,null,"SR20A",null,12]
["BOX-1","25'S23B_24_FOC;",25,"FP001-015","SC00-1",null,null,"SR20A",null,12]
["BOX-1","25'S23B_24_FOC;",25,"FP001-016","SC00-1",null,null,"SR20A",null,12]
["BOX-1",null,0,"FP001-017",null,null,null,"SR20A",null,12]
["BOX-1","25'S23B_96_FOC;",25,"FP001-018","SC00-1",null,null,"SR20A",null,12]
["BOX-1","25'S23B_96_FOC;",25,"FP001-019","SC00-1",null,null,"SR20A",null,12]
["BOX-1","25'S23B_96_FOC;",25,"FP001-020",null,null,null,"SR20A",null,12]
["BOX-1","25'S23B_96_FOC;",25,"FP001-021","SC00-1",null,null,"SR20A",null,12]
["BOX-1","25'S23B_96_FOC;",25,"FP001-022","SC00-1",null,null,"SR20A",null,12]
["BOX-1","25'S23B_96_FOC;",25,"FP001-023","SC00-1",null,null,"SR20A",null,12]
["BOX-1",null,0,"FP001-024",null,null,null,"SR20A",null,12]
["BOX-1","25'S23B_96_FOC;",25,"FP001-025","SC00-1",null,null,"SR20A",null,12]
["BOX-1","25'S23B_24_FOC;",25,"FP001-026","SC00-1",null,null,"SR20A",null,12]
["BOX-1","25'S23B_24_FOC;",25,"FP001-027","SC00-1",null,null,"SR20A",null,12]
["BOX-1","25'S23B_24_FOC;",25,"FP001-028","SC00-1",null,null,"SR20A",null,12]
["BOX-1","25'S23B_24_FOC;",25,"FP001-029","SC00-1",null,null,"SR20A",null,12]
["BOX-1",null,0,"FP001-030",null,null,null,"SR20A",null,12]
["BOX-1","25'S23B_24_FOC;",25,"FP001-031","SC00-1",null,null,"SR20A",null,12]
["BOX-3","50'S23B_24_FOC;50'S23B_96_FOC;",100,"FP001-032","SC00-1","FS01-3",22,"SR20A",null,20]
["BOX-1","25'S23B_96_FOC;",25,"FP001-033","SC00-1",null,null,"SR20A",null,12]
["BOX-1","25'S23B_96_FOC;",25,"FP001-034",null,null,null,"SR20A",null,12]
["BOX-2","50'S23B_24_FOC;50'S23B_96_FOC;",100,"FP001-001","SC00-1","FS01-3",30,"SR20A",null,20]
["BOX-1",null,0,"FP001-002","SC00-1",null,null,"SR20A",null,12]
["BOX-1",null,0,"FP001-003","SC00-1",null,null,"SR20A",null,12]
["BOX-FP",null,0,"FP001-004",null,null,null,"SR20A",null,5]
["BOX-FP",null,0,"FP001-005",null,null,null,"SR20A",null,5]
["BOX-FP",null,0,"FP001-006",null,null,null,"SR20A",null,5]
["BOX-FP",null,0,"FP001-007",null,null,null,"SR20A",null,5]
["BOX-FP",null,0,"FP001-008",null,null,null,"SR20A",null,5]
["BOX-FP",null,0,"FP001-009",null,null,null,"SR20A",null,5]
["BOX-FP",null,0,"FP001-010",null,null,null,"SR20A",null,5]
["BOX-FP",null,0,"FP001-011",null,null,null,"SR20A",null,5]
["BOX-FP",null,0,"FP001-012",null,null,null,"SR20A",null,5]
["BOX-FP",null,0,"FP001-013",null,null,null,"SR20A",null,5]
["BOX-FP",null,0,"FP001-014",null,null,null,"SR20A",null,5]
["BOX-FP",null,0,"FP001-015",null,null,null,"SR20A",null,5]
["BOX-FP",null,0,"FP001-016",null,null,null,"SR20A",null,5]
["BOX-1",null,0,"FP001-017",null,null,null,"SR20A",null,5]
["BOX-1",null,0,"FP001-018",null,null,null,"SR20A",null,5]
["BOX-FP",null,0,"FP001-019",null,null,null,"SR20A",null,5]
["BOX-FP",null,0,"FP001-020",null,null,null,"SR20A",null,5]
["BOX-FP",null,0,"FP001-021",null,null,null,"SR20A",null,5]
["BOX-FP",null,0,"FP001-022",null,null,null,"SR20A",null,5]
["BOX-FP",null,0,"FP001-023",null,null,null,"SR20A",null,5]
["BOX-FP",null,0,"FP001-024",null,null,null,"SR20A",null,5]
["BOX-FP",null,0,"FP001-025",null,null,null,"SR20A",null,5]
["BOX-FP",null,0,"FP001-026",null,null,null,"SR20A",null,5]
["BOX-FP",null,0,"FP001-027",null,null,null,"SR20A",null,5]
["BOX-FP",null,0,"FP001-028",null,null,null,"SR20A",null,5]
["BOX-FP",null,0,"FP001-029",null,null,null,"SR20A",null,5]
["BOX-FP",null,0,"FP001-030",null,null,null,"SR20A",null,5]
["BOX-FP",null,0,"FP001-031",null,null,null,"SR20A",null,5]
["BOX-FP",null,0,"FP001-032",null,null,null,"SR20A",null,5]
["BOX-FP",null,0,"FP001-033",null,null,null,"SR20A",null,5]
["BOX-FP",null,0,"FP001-034",null,null,null,"SR20A",null,5]
["BOX-FP",null,0,"FP001-001",null,null,null,"SR20A",null,5]
["BOX-FP",null,0,"FP001-002",null,null,null,"SR20A",null,5]
["BOX-FP",null,0,"FP001-003",null,null,null,"SR20A",null,5]
["BOX-FP",null,0,"FP001-004",null,null,null,"SR20A",null,5]
["BOX-FP",null,0,"FP001-005",null,null,null,"SR20A",null,5]
["BOX-FP",null,0,"FP001-006",null,null,null,"SR20A",null,5]
["BOX-FP",null,0,"FP001-007",null,null,null,"SR20A",null,5]
["BOX-FP",null,0,"FP001-008",null,null,null,"SR20A",null,5]
["BOX-FP",null,0,"FP001-009",null,null,null,"SR20A",null,5]
["BOX-FP",null,0,"FP001-010",null,null,null,"SR20A",null,5]
["BOX-FP",null,0,"FP001-011",null,null,null,"SR20A",null,5]
["BOX-FP",null,0,"FP001-012",null,null,null,"SR20A",null,5]
["BOX-FP",null,0,"FP001-013",null,null,null,"SR20A",null,5]
["BOX-FP",null,0,"FP001-014",null,null,null,"SR20A",null,5]
["BOX-FP",null,0,"FP001-015",null,null,null,"SR20A",null,5]
["BOX-FP",null,0,"FP001-016",null,null,null,"SR20A",null,5]
["BOX-FP",null,0,"FP001-017",null,null,null,"SR20A",null,5]
["BOX-FP",null,0,"FP001-018",null,null,null,"SR20A",null,5]
["BOX-FP",null,0,"FP001-019",null,null,null,"SR20A",null,5]
["BOX-FP",null,0,"FP001-020",null,null,null,"SR20A",null,5]
["BOX-FP",null,0,"FP001-021",null,null,null,"SR20A",null,5]
["BOX-FP",null,0,"FP001-022",null,null,null,"SR20A",null,5]
["BOX-FP",null,0,"FP001-023",null,null,null,"SR20A",null,5]
["BOX-FP",null,0,"FP001-024",null,null,null,"SR20A",null,5]
["BOX-FP",null,0,"FP001-025",null,null,null,"SR20A",null,5]
["BOX-FP",null,0,"FP001-026",null,null,null,"SR20A",null,5]
["BOX-FP",null,0,"FP001-027",null,null,null,"SR20A",null,5]
["BOX-FP",null,0,"FP001-028",null,null,null,"SR20A",null,5]
["BOX-1",null,0,"FP001-029",null,null,null,"SR20A",null,12]
["BOX-1","25'S23B_96_FOC;",25,"FP001-030","SC00-1",null,null,"SR20A",null,12]
["BOX-1","25'S23B_24_FOC;",25,"FP001-031","SC00-1",null,null,"SR20A",null,12]
["BOX-1",null,0,"FP001-032",null,null,null,"SR20A",null,12]
["BOX-1","25'S23B_24_FOC;",25,"FP001-033","SC00-1",null,null,"SR20A",null,12]
["BOX-1",null,0,"FP001-034",null,null,null,"SR20A",null,12]
["BOX-1","25'S23B_24_FOC;",25,"FP001-001","SC00-1",null,null,"SR20A",null,12]
["BOX-1","25'S23B_96_FOC;",25,"FP001-002",null,null,null,"SR20A",null,12]
["BOX-1","25'S23B_96_FOC;",25,"FP001-003","SC00-1",null,null,"SR20A",null,12]
["BOX-1","25'S23B_48_FOC;",25,"FP001-004","SC00-1",null,null,"SR20A",null,12]
["BOX-1","25'S23B_48_FOC;",25,"FP001-005","SC00-1",null,null,"SR20A",null,12]
["BOX-1","25'S23B_48_FOC;",25,"FP001-006","SC00-1",null,null,"SR20A",null,12]
["BOX-1","25'S23B_48_FOC;25'S23B_24_FOC;",50,"FP001-007","SC00-1","FS01-3",19,"SR20A",null,12]
["BOX-1","25'S23B_48_FOC;",25,"FP001-008","SC00-1",null,null,"SR20A",null,12]
["BOX-2","25'S23B_48_FOC;25'S23B_96_FOC;",50,"FP001-009","SC00-1","FS01-3",null,"SR20A",null,12]
["BOX-1","25'S23B_96_FOC;",25,"FP001-010","SC00-1",null,null,"SR20A",null,12]
["BOX-1","25'S23B_24_FOC;",25,"FP001-011","SC00-1",null,null,"SR20A",null,12]
["BOX-1","25'S23B_24_FOC;",25,"FP001-012","SC00-1",null,null,"SR20A",null,12]
["BOX-1","25'S23B_24_FOC;",25,"FP001-013","SC00-1",null,null,"SR20A",null,12]
["BOX-1","25'S23B_24_FOC;",25,"FP001-014",null,null,null,"SR20A",null,12]
["BOX-1","25'S23B_24_FOC;",25,"FP001-015","SC00-1",null,null,"SR20A",null,12]
["BOX-1","25'S23B_24_FOC;25'S23B_96_FOC;",50,"FP001-016","SC00-1","FS01-3",20,"SR20A",null,12]
["BOX-1","25'S23B_96_FOC;",25,"FP001-017","SC00-1",null,null,"SR20A",null,12]
["BOX-1","25'S23B_96_FOC;",25,"FP001-018","SC00-1",null,null,"SR20A",null,12]
["BOX-1","25'S23B_24_FOC;",25,"FP001-019","SC00-1",null,null,"SR20A",null,12]
["BOX-1","25'S23B_24_FOC;",25,"FP001-020","SC00-1",null,null,"SR20A",null,12]
["BOX-1","25'S23B_24_FOC;",25,"FP001-021","SC00-1",null,null,"SR20A",null,12]
["BOX-1","25'S23B_24_FOC;",25,"FP001-022",null,null,null,"SR20A",null,12]
["BOX-1","25'S23B_24_FOC;",25,"FP001-023","SC00-1",null,null,"SR20A",null,12]
["BOX-1","25'S23B_96_FOC;",25,"FP001-024",null,null,null,"SR20A",null,12]
["BOX-1","25'S23B_96_FOC;",25,"FP001-025","SC00-1",null,null,"SR20A",null,12]
["BOX-1",null,0,"FP001-026",null,null,null,"SR20A",null,12]
["BOX-1","25'S23B_96_FOC;",25,"FP001-027",null,null,null,"SR20A",null,12]
["BOX-2","50'S23B_144_FOC;25'S23B_96_FOC;25'S23B_24_FOC;25' S23B_24_FOC;",125,"FP001-028","SC00-1","FS01-3",20,"SR20A",null,12]
["BOX-1","25'S23B_96_FOC;",25,"FP001-029",null,null,null,"SR20A",null,12]
["BOX-2","50'S23B_144_FOC;25'S23B_48_FOC;25'S23B_24_FOC;",100,"FP001-030",null,null,null,"SR20A",null,12]
["BOX-1","25'S23B_95_FOC;",25,"FP001-031",null,null,null,"SR20A",null,12]
["BOX-1","25'S23B_48_FOC;",25,"FP001-032","SC00-1",null,null,"SR20A",null,12]
["BOX-1","25'S23B_48_FOC;",25,"FP001-033",null,null,null,"SR20A",null,12]
["BOX-1","25'S23B_48_FOC;",25,"FP001-034","SC00-1",null,null,"SR20A",null,12]
["BOX-1","25'S23B_48_FOC;",25,"FP001-001","SC00-1",null,null,"SR20A",null,12]
["BOX-1","25'S23B_48_FOC;",25,"FP001-002",null,null,null,"SR20A",null,12]
["BOX-1","25'S23B_47_FOC;",25,"FP001-003","SC00-1",null,null,"SR20A",null,12]
["BOX-1","25'S23B_24_FOC;",25,"FP001-004","SC00-1",null,null,"SR20A",null,12]
["BOX-1","25'S23B_24_FOC;",0,"FP001-005","SC00-1",null,null,"SR20A",null,12]
["BOX-1",null,0,"FP001-006",null,null,null,"SR20A",null,12]
["BOX-1","25' S23B_96_FOC;",25,"FP001-007","SC00-1",null,null,"SR20A",null,12]
["BOX-1","25' S23B_96_FOC;",25,"FP001-008","SC00-1",null,null,"SR20A",null,12]
["BOX-1","25'S23B_96_FOC;",25,"FP001-009","SC00-1",null,null,"SR20A",null,12]
["BOX-1",null,0,"FP001-010",null,null,null,"SR20A",null,12]
["BOX-1","25'S23B_96_FOC;",25,"FP001-011","SC00-1",null,null,"SR20A",null,12]
["BOX-1",null,0,"FP001-012",null,null,null,"SR20A",null,12]
["BOX-1","25'S23B_96_FOC;",25,"FP001-013",null,null,null,"SR20A",null,12]
["BOX-1","25'S23B_96_FOC;",25,"FP001-014","SC00-1",null,null,"SR20A",null,12]
["BOX-1",null,0,"FP001-015",null,null,null,"SR20A",null,12]
["BOX-1","25'S23B_96_FOC;",25,"FP001-016","SC00-1",null,null,"SR20A",null,12]
["BOX-1","25'S23B_96_FOC;",25,"FP001-017",null,null,null,"SR20A",null,12]
["BOX-1",null,0,"FP001-018",null,null,null,"SR20A",null,12]
["BOX-1",null,0,"FP001-019",null,null,null,"SR20A",null,12]
["BOX-1",null,0,"FP001-020",null,null,null,"SR20A",null,12]
["BOX-1",null,0,"FP001-021",null,null,null,"SR20A",null,12]
["BOX-1","25'S23B_24_FOC;",25,"FP001-022","SC00-1",null,null,"SR20A",null,12]
["BOX-1","25'S23B_48_FOC;",25,"FP001-023",null,null,null,"SR20A",null,12]
["BOX-1","25'S23B_24_FOC;",25,"FP001-024","SC00-1",null,null,"SR20A",null,12]
["BOX-1","25'S23B_48_FOC;",25,"FP001-025",null,null,null,"SR20A",null,12]
["BOX-1",null,null,"FP001-026",null,null,null,"SR20A",null,12]
[null,null,{"$f":"SUM(C2:C536)","v":8100}]

{"sheet":"Sheet3","index":2,"n_rows":520,"n_cols":19,"rows_kept":520,"cut":false,"hidden":false,"merged":[]}
["UNIT_ID1","UNIT_ID2","UNIT_ID3","UNIT_ID4","UNIT_ID5","UNIT_ID6","UNIT_ID7","UNIT_ID8","UNIT_ID9","UNIT_ID10","UNIT_ID11","UNIT_ID12","UNIT_ID13","UNIT_ID14","UNIT_ID15","FOOTAGE","DOC","COMMENTS","DC_ID"]
["MD67-4","TW300","PC21 48 FOC",null,null,null,null,null,null,null,null,null,null,null,null,335,"FP001-001"]
["MD67-4","TW300","PC21 96 FOC","PC21 96 FOC",null,null,null,null,null,null,null,null,null,null,null,80,"FP001-002"]
["MD67-4","TW300","PC21 96 FOC","PC21 96 FOC",null,null,null,null,null,null,null,null,null,null,null,165,"FP001-003"]
["MD67-4","TW300","PC21 96 FOC","PC21 96 FOC",null,null,null,null,null,null,null,null,null,null,null,170,"FP001-004"]
["MD67-4","TW300","PC21 96 FOC","PC21 96 FOC",null,null,null,null,null,null,null,null,null,null,null,170,"FP001-005"]
["MD67-4","TW300","PC21 96 FOC","PC21 96 FOC",null,null,null,null,null,null,null,null,null,null,null,105,"FP001-006"]
["MD67-4","TW300","PC21 96 FOC","PC21 96 FOC",null,null,null,null,null,null,null,null,null,null,null,150,"FP001-007"]
["MD67-4","TW300","PC21 96 FOC","PC21 96 FOC",null,null,null,null,null,null,null,null,null,null,null,175,"FP001-008"]
["MD67-4","TW300","PC21 96 FOC","PC21 96 FOC",null,null,null,null,null,null,null,null,null,null,null,90,"FP001-009"]
["MD67-4","TW300","PC21 96 FOC","PC21 96 FOC",null,null,null,null,null,null,null,null,null,null,null,230,"FP001-010"]
["MD67-4","TW300","PC21 96 FOC","PC21 96 FOC",null,null,null,null,null,null,null,null,null,null,null,170,"FP001-011"]
["MD67-4","TW300","PC21 96 FOC","PC21 96 FOC",null,null,null,null,null,null,null,null,null,null,null,85,"FP001-012"]
["MD67-4","TW300","PC21 96 FOC","PC21 96 FOC",null,null,null,null,null,null,null,null,null,null,null,100,"FP001-013"]
["MD67-4","TW300","PC21 96 FOC","PC21 96 FOC",null,null,null,null,null,null,null,null,null,null,null,85,"FP001-014"]
["MD67-4","TW300","PC21 96 FOC","PC21 96 FOC",null,null,null,null,null,null,null,null,null,null,null,110,"FP001-015"]
["B51","TW300",null,null,null,null,null,null,null,null,null,null,null,null,null,60,"FP001-016"]
["MD67-4","TW300",null,null,null,null,null,null,null,null,null,null,null,null,null,115,"FP001-017"]
["MD67-4","TW300","723B 48 FOC",null,null,null,null,null,null,null,null,null,null,null,null,105,"FP001-018"]
["MD67-7","TW300",null,null,null,null,null,null,null,null,null,null,null,null,null,55,"FP001-019"]
["MD67-4","TW300",null,null,null,null,null,null,null,null,null,null,null,null,null,50,"FP001-020"]
["MD67-4","TW300",null,null,null,null,null,null,null,null,null,null,null,null,null,55,"FP001-021"]
["B51","TW300",null,null,null,null,null,null,null,null,null,null,null,null,null,180,"FP001-022"]
["B51","TW300",null,null,null,null,null,null,null,null,null,null,null,null,null,60,"FP001-023"]
["MD67-4","TW300","PC21 48 FOC",null,null,null,null,null,null,null,null,null,null,null,null,185,"FP001-024"]
["B51","TW300",null,null,null,null,null,null,null,null,null,null,null,null,null,185,"FP001-025"]
["B51","TW300",null,null,null,null,null,null,null,null,null,null,null,null,null,160,"FP001-026"]
["MD67-7","TW300",null,null,null,null,null,null,null,null,null,null,null,null,null,155,"FP001-027"]
["MD67-7","TW300","PC21 48 FOC",null,null,null,null,null,null,null,null,null,null,null,null,85,"FP001-028"]
["B51","TW300",null,null,null,null,null,null,null,null,null,null,null,null,null,110,"FP001-029"]
["B51","TW300","PC21 24 FOC",null,null,null,null,null,null,null,null,null,null,null,null,110,"FP001-030"]
["B51","TW300","PC21 24 FOC",null,null,null,null,null,null,null,null,null,null,null,null,290,"FP001-031"]
["B51","TW300","PC21 24 FOC",null,null,null,null,null,null,null,null,null,null,null,null,310,"FP001-032"]
["B51","TW300","PC21-24 FOC",null,null,null,null,null,null,null,null,null,null,null,null,275,"FP001-033"]
["B51","TW300","PC21-24 FOC",null,null,null,null,null,null,null,null,null,null,null,null,110,"FP001-034"]
["B51","TW300",null,null,null,null,null,null,null,null,null,null,null,null,null,90,"FP001-001"]
["MD67-4","TW300","PC21-96 FOC",null,null,null,null,null,null,null,null,null,null,null,null,85,"FP001-002"]
["MD67-7","TW300",null,null,null,null,null,null,null,null,null,null,null,null,null,70,"FP001-003"]
["B51","TW300",null,null,null,null,null,null,null,null,null,null,null,null,null,65,"FP001-004"]
["B51","TW300",null,null,null,null,null,null,null,null,null,null,null,null,null,75,"FP001-005"]
["B51","TW300",null,null,null,null,null,null,null,null,null,null,null,null,null,55,"FP001-006"]
["B51","TW300",null,null,null,null,null,null,null,null,null,null,null,null,null,65,"FP001-007"]
["B51","TW300",null,null,null,null,null,null,null,null,null,null,null,null,null,55,"FP001-008"]
["B51","TW300",null,null,null,null,null,null,null,null,null,null,null,null,null,160,"FP001-009"]
["B51","TW300",null,null,null,null,null,null,null,null,null,null,null,null,null,60,"FP001-010"]
["LO345","TW300","PC21 24 FOC",null,null,null,null,null,null,null,null,null,null,null,null,215,"FP001-011"]
["LO345","TW300","PC21 24 FOC",null,null,null,null,null,null,null,null,null,null,null,null,225,"FP001-012"]
["EX. 2\" CONDUIT","TW300","PC21 144 FOC",null,null,null,null,null,null,null,null,null,null,null,null,175,"FP001-013"]
["B51","TW300",null,null,null,null,null,null,null,null,null,null,null,null,null,80,"FP001-014"]
["B51","TW300",null,null,null,null,null,null,null,null,null,null,null,null,null,50,"FP001-015"]
["B51","TW300",null,null,null,null,null,null,null,null,null,null,null,null,null,160,"FP001-016"]
["B51","TW300",null,null,null,null,null,null,null,null,null,null,null,null,null,80,"FP001-017"]
["B51","TW300",null,null,null,null,null,null,null,null,null,null,null,null,null,45,"FP001-018"]
["B51","TW300",null,null,null,null,null,null,null,null,null,null,null,null,null,80,"FP001-019"]
["B51","TW300",null,null,null,null,null,null,null,null,null,null,null,null,null,80,"FP001-020"]
["B51","TW300",null,null,null,null,null,null,null,null,null,null,null,null,null,45,"FP001-021"]
["B51","TW300",null,null,null,null,null,null,null,null,null,null,null,null,null,45,"FP001-022"]
["B51","TW300",null,null,null,null,null,null,null,null,null,null,null,null,null,120,"FP001-023"]
["B51","TW300",null,null,null,null,null,null,null,null,null,null,null,null,null,45,"FP001-024"]
["B51","TW300",null,null,null,null,null,null,null,null,null,null,null,null,null,45,"FP001-025"]
["B51","TW300",null,null,null,null,null,null,null,null,null,null,null,null,null,105,"FP001-026"]
["B51","TW300",null,null,null,null,null,null,null,null,null,null,null,null,null,80,"FP001-027"]
["B51","TW300",null,null,null,null,null,null,null,null,null,null,null,null,null,170,"FP001-028"]
["B51","TW300",null,null,null,null,null,null,null,null,null,null,null,null,null,95,"FP001-029"]
["B51","TW300",null,null,null,null,null,null,null,null,null,null,null,null,null,85,"FP001-030"]
["B51","TW300",null,null,null,null,null,null,null,null,null,null,null,null,null,90,"FP001-031"]
["TW300","LO345","PC21-72 FOC",null,null,null,null,null,null,null,null,null,null,null,null,185,"FP001-032"]
["TW300","LO345","PC21-72 FOC",null,null,null,null,null,null,null,null,null,null,null,null,135,"FP001-033"]
["TW300","LO345","PC21-72 FOC",null,null,null,null,null,null,null,null,null,null,null,null,140,"FP001-034"]
["TW300","LO345","PC21-72 FOC",null,null,null,null,null,null,null,null,null,null,null,null,185,"FP001-001"]
["TW300","LO345","PC21-72 FOC",null,null,null,null,null,null,null,null,null,null,null,null,80,"FP001-002"]
["TW300","LO345","PC21-72 FOC",null,null,null,null,null,null,null,null,null,null,null,null,155,"FP001-003"]
["B51","TW300","PC21-24 FOC",null,null,null,null,null,null,null,null,null,null,null,null,245,"FP001-004"]
["B51","TW300","PC21-24 FOC",null,null,null,null,null,null,null,null,null,null,null,null,235,"FP001-005"]
["B51","TW300","PC21-24 FOC",null,null,null,null,null,null,null,null,null,null,null,null,160,"FP001-006"]
["B51","TW300","PC21-24 FOC",null,null,null,null,null,null,null,null,null,null,null,null,145,"FP001-007"]
["B51","TW300","PC21-48 FOC",null,null,null,null,null,null,null,null,null,null,null,null,60,"FP001-008"]
["B51","TW300","PC21-48 FOC",null,null,null,null,null,null,null,null,null,null,null,null,195,"FP001-009"]
["B51","TW300","PC21-48 FOC",null,null,null,null,null,null,null,null,null,null,null,null,135,"FP001-010"]
["B51","TW300","PC21-48 FOC",null,null,null,null,null,null,null,null,null,null,null,null,170,"FP001-011"]
["B51","TW300","PC21-96 FOC",null,null,null,null,null,null,null,null,null,null,null,null,195,"FP001-012"]
["B51","TW300","PC21-96 FOC",null,null,null,null,null,null,null,null,null,null,null,null,190,"FP001-013"]
["B51","TW300","PC21-96 FOC",null,null,null,null,null,null,null,null,null,null,null,null,170,"FP001-014"]
["B51","TW300","PC21-96 FOC",null,null,null,null,null,null,null,null,null,null,null,null,175,"FP001-015"]
["B51","TW300","PC21-96 FOC",null,null,null,null,null,null,null,null,null,null,null,null,190,"FP001-016"]
["B51","TW300","PC21-96 FOC",null,null,null,null,null,null,null,null,null,null,null,null,135,"FP001-017"]
["B51","TW300","PC21-96 FOC",null,null,null,null,null,null,null,null,null,null,null,null,280,"FP001-018"]
["B51","TW300","PC21-96 FOC",null,null,null,null,null,null,null,null,null,null,null,null,240,"FP001-019"]
["B51","TW300","PC21-48 FOC",null,null,null,null,null,null,null,null,null,null,null,null,175,"FP001-020"]
["B51","TW300","PC21-96 FOC",null,null,null,null,null,null,null,null,null,null,null,null,85,"FP001-021"]
["B51","TW300","PC21-96 FOC",null,null,null,null,null,null,null,null,null,null,null,null,165,"FP001-022"]
["B51","TW300","PC21-96 FOC",null,null,null,null,null,null,null,null,null,null,null,null,170,"FP001-023"]
["B51","TW300","PC21-48 FOC",null,null,null,null,null,null,null,null,null,null,null,null,265,"FP001-024"]
["B51","TW300","PC21-48 FOC",null,null,null,null,null,null,null,null,null,null,null,null,170,"FP001-025"]
["B51","TW300","PC21-48 FOC",null,null,null,null,null,null,null,null,null,null,null,null,190,"FP001-026"]
["B51","TW300","PC21-48 FOC",null,null,null,null,null,null,null,null,null,null,null,null,175,"FP001-027"]
["B51","TW300","PC21-48 FOC",null,null,null,null,null,null,null,null,null,null,null,null,165,"FP001-028"]
["B51","TW300","PC21-48 FOC",null,null,null,null,null,null,null,null,null,null,null,null,95,"FP001-029"]
["B51","TW300","PC21-48 FOC",null,null,null,null,null,null,null,null,null,null,null,null,160,"FP001-030"]
["B51","TW300","PC21-48 FOC",null,null,null,null,null,null,null,null,null,null,null,null,180,"FP001-031"]
["B51","TW300","PC21-72 FOC",null,null,null,null,null,null,null,null,null,null,null,null,210,"FP001-032"]
["B51","TW300",null,null,null,null,null,null,null,null,null,null,null,null,null,110,"FP001-033"]
["B51","TW300",null,null,null,null,null,null,null,null,null,null,null,null,null,225,"FP001-034"]
["B51","TW300","PC21-24 FOC",null,null,null,null,null,null,null,null,null,null,null,null,110,"FP001-001"]
["B51","TW300","PC21-24 FOC",null,null,null,null,null,null,null,null,null,null,null,null,205,"FP001-002"]
["B51","TW300","PC21-24 FOC",null,null,null,null,null,null,null,null,null,null,null,null,95,"FP001-003"]
["B51","TW300",null,null,null,null,null,null,null,null,null,null,null,null,null,180,"FP001-004"]
["MD67-2","TW300","PC21-96 FOC",null,null,null,null,null,null,null,null,null,null,null,null,175,"FP001-005"]
["MD67-2","TW300","PC21-96 FOC",null,null,null,null,null,null,null,null,null,null,null,null,175,"FP001-006"]
["B51","TW300",null,null,null,null,null,null,null,null,null,null,null,null,null,100,"FP001-007"]
["B51","TW300","PC21-96 FOC",null,null,null,null,null,null,null,null,null,null,null,null,160,"FP001-008"]
["B51","TW300",null,null,null,null,null,null,null,null,null,null,null,null,null,75,"FP001-009"]
["B51","TW300",null,null,null,null,null,null,null,null,null,null,null,null,null,45,"FP001-010"]
["MD67-7","TW300",null,null,null,null,null,null,null,null,null,null,null,null,null,130,"FP001-011"]
["MD67-7","TW300",null,null,null,null,null,null,null,null,null,null,null,null,null,165,"FP001-012"]
["MD67-4","TW300","PC21-96 F0C",null,null,null,null,null,null,null,null,null,null,null,null,80,"FP001-013"]
["MD67-4","TW300","PC21-96 FOC",null,null,null,null,null,null,null,null,null,null,null,null,85,"FP001-014"]
["MD67-4","TW300","PC21-96 FOC",null,null,null,null,null,null,null,null,null,null,null,null,120,"FP001-015"]
["MD67-4","TW300","PC21-96 FOC",null,null,null,null,null,null,null,null,null,null,null,null,95,"FP001-016"]
["B51","TW300",null,null,null,null,null,null,null,null,null,null,null,null,null,85,"FP001-017"]
["B51","TW300",null,null,null,null,null,null,null,null,null,null,null,null,null,60,"FP001-018"]
["B51","TW300","PC21-96 FOC",null,null,null,null,null,null,null,null,null,null,null,null,300,"FP001-019"]
["MD67-4","TW300","PC21-96 FOC",null,null,null,null,null,null,null,null,null,null,null,null,240,"FP001-020"]
["B51","TW300",null,null,null,null,null,null,null,null,null,null,null,null,null,230,"FP001-021"]
["B51","TW300","PC21-24 FOC",null,null,null,null,null,null,null,null,null,null,null,null,180,"FP001-022"]
["MD67-4","TW300","PC21-24 FOC",null,null,null,null,null,null,null,null,null,null,null,null,170,"FP001-023"]
["B51","TW300","PC21-24 FOC",null,null,null,null,null,null,null,null,null,null,null,null,180,"FP001-024"]
["B51","TW300",null,null,null,null,null,null,null,null,null,null,null,null,null,175,"FP001-025"]
["B51","TW300",null,null,null,null,null,null,null,null,null,null,null,null,null,60,"FP001-026"]
["B51","TW300","PC21-24 FOC",null,null,null,null,null,null,null,null,null,null,null,null,100,"FP001-027"]
["MD67-7","TW300",null,null,null,null,null,null,null,null,null,null,null,null,null,100,"FP001-028"]
["MD67-7","TW300",null,null,null,null,null,null,null,null,null,null,null,null,null,130,"FP001-029"]
["MD67-7","TW300",null,null,null,null,null,null,null,null,null,null,null,null,null,135,"FP001-030"]
["B51","TW300","PC21-24 FOC",null,null,null,null,null,null,null,null,null,null,null,null,180,"FP001-031"]
["B51","TW300",null,null,null,null,null,null,null,null,null,null,null,null,null,60,"FP001-032"]
["B51","TW300","PC21-96 FOC",null,null,null,null,null,null,null,null,null,null,null,null,195,"FP001-033"]
["B51","TW300",null,null,null,null,null,null,null,null,null,null,null,null,null,185,"FP001-034"]
["B51","TW300",null,null,null,null,null,null,null,null,null,null,null,null,null,60,"FP001-001"]
["B51","TW300",null,null,null,null,null,null,null,null,null,null,null,null,null,85,"FP001-002"]
["B51","TW300",null,null,null,null,null,null,null,null,null,null,null,null,null,60,"FP001-003"]
["B51","TW300",null,null,null,null,null,null,null,null,null,null,null,null,null,60,"FP001-004"]
["B51","TW300",null,null,null,null,null,null,null,null,null,null,null,null,null,60,"FP001-005"]
["B51","TW300",null,null,null,null,null,null,null,null,null,null,null,null,null,110,"FP001-006"]
["B51","TW300","PC21-24 FOC",null,null,null,null,null,null,null,null,null,null,null,null,190,"FP001-007"]
["B51","TW300","PC21-24 FOC",null,null,null,null,null,null,null,null,null,null,null,null,155,"FP001-008"]
["B51","TW300",null,null,null,null,null,null,null,null,null,null,null,null,null,165,"FP001-009"]
["B51","TW300",null,null,null,null,null,null,null,null,null,null,null,null,null,60,"FP001-010"]
["MD67-4","TW300",null,null,null,null,null,null,null,null,null,null,null,null,null,61,"FP001-011"]
["B51","TW300",null,null,null,null,null,null,null,null,null,null,null,null,null,90,"FP001-012"]
["B51","TW300",null,null,null,null,null,null,null,null,null,null,null,null,null,90,"FP001-013"]
["MD67-7","TW300",null,null,null,null,null,null,null,null,null,null,null,null,null,60,"FP001-014"]
["B51","TW300",null,null,null,null,null,null,null,null,null,null,null,null,null,60,"FP001-015"]
["B51","TW300","PC21-24 FOC",null,null,null,null,null,null,null,null,null,null,null,null,170,"FP001-016"]
["B51","TW300","PC21-24 FOC",null,null,null,null,null,null,null,null,null,null,null,null,165,"FP001-017"]
["B51","TW300","PC21-24 FOC",null,null,null,null,null,null,null,null,null,null,null,null,110,"FP001-018"]
["B51","TW300","PC21",null,null,null,null,null,null,null,null,null,null,null,null,180,"FP001-019"]
["B51","TW300",null,null,null,null,null,null,null,null,null,null,null,null,null,140,"FP001-020"]
["B51","TW300",null,null,null,null,null,null,null,null,null,null,null,null,null,100,"FP001-021"]
["B51","TW300","PC21-24 FOC",null,null,null,null,null,null,null,null,null,null,null,null,90,"FP001-022"]
["B51","TW300","PC21-72 FOC",null,null,null,null,null,null,null,null,null,null,null,null,80,"FP001-023"]
["B51","TW300","PC21-72 FOC",null,null,null,null,null,null,null,null,null,null,null,null,70,"FP001-024"]
["B51","TW300","PC21-72 FOC",null,null,null,null,null,null,null,null,null,null,null,null,200,"FP001-025"]
["B51","TW300",null,null,null,null,null,null,null,null,null,null,null,null,null,95,"FP001-026"]
["B51","TW300",null,null,null,null,null,null,null,null,null,null,null,null,null,96,"FP001-027"]
["B51","TW300",null,null,null,null,null,null,null,null,null,null,null,null,null,60,"FP001-028"]
["B51","TW300",null,null,null,null,null,null,null,null,null,null,null,null,null,100,"FP001-029"]
["B51","TW300",null,null,null,null,null,null,null,null,null,null,null,null,null,55,"FP001-030"]
["B51","TW300",null,null,null,null,null,null,null,null,null,null,null,null,null,55,"FP001-031"]
["B51","TW300",null,null,null,null,null,null,null,null,null,null,null,null,null,56,"FP001-032"]
["B51","TW300",null,null,null,null,null,null,null,null,null,null,null,null,null,125,"FP001-033"]
["B51","TW300",null,null,null,null,null,null,null,null,null,null,null,null,null,110,"FP001-034"]
["B51","TW300",null,null,null,null,null,null,null,null,null,null,null,null,null,65,"FP001-001"]
["B51","TW300",null,null,null,null,null,null,null,null,null,null,null,null,null,100,"FP001-002"]
["B51","TW300",null,null,null,null,null,null,null,null,null,null,null,null,null,55,"FP001-003"]
["B51","TW300",null,null,null,null,null,null,null,null,null,null,null,null,null,90,"FP001-004"]
["B51","TW300",null,null,null,null,null,null,null,null,null,null,null,null,null,50,"FP001-005"]
["B51","TW300",null,null,null,null,null,null,null,null,null,null,null,null,null,120,"FP001-006"]
["B51","TW300",null,null,null,null,null,null,null,null,null,null,null,null,null,180,"FP001-007"]
["B51","TW300",null,null,null,null,null,null,null,null,null,null,null,null,null,175,"FP001-008"]
["B51","TW300",null,null,null,null,null,null,null,null,null,null,null,null,null,95,"FP001-009"]
["B51","TW300",null,null,null,null,null,null,null,null,null,null,null,null,null,55,"FP001-010"]
["B51","TW300",null,null,null,null,null,null,null,null,null,null,null,null,null,85,"FP001-011"]
["B51","TW300",null,null,null,null,null,null,null,null,null,null,null,null,null,90,"FP001-012"]
["B51","TW300",null,null,null,null,null,null,null,null,null,null,null,null,null,65,"FP001-013"]
["B51","TW300",null,null,null,null,null,null,null,null,null,null,null,null,null,275,"FP001-014"]
["B51","TW300",null,null,null,null,null,null,null,null,null,null,null,null,null,115,"FP001-015"]
["B51","TW300",null,null,null,null,null,null,null,null,null,null,null,null,null,45,"FP001-016"]
["B51","TW300",null,null,null,null,null,null,null,null,null,null,null,null,null,115,"FP001-017"]
["B51","TW300",null,null,null,null,null,null,null,null,null,null,null,null,null,85,"FP001-018"]
["B51","TW300",null,null,null,null,null,null,null,null,null,null,null,null,null,90,"FP001-019"]
["B51","TW300",null,null,null,null,null,null,null,null,null,null,null,null,null,91,"FP001-020"]
["B51","TW300",null,null,null,null,null,null,null,null,null,null,null,null,null,155,"FP001-021"]
["B51","TW300",null,null,null,null,null,null,null,null,null,null,null,null,null,140,"FP001-022"]
["B51","TW300",null,null,null,null,null,null,null,null,null,null,null,null,null,160,"FP001-023"]
["B51","TW300",null,null,null,null,null,null,null,null,null,null,null,null,null,110,"FP001-024"]
["MD67-2","TW300","PC21 96 FOC",null,null,null,null,null,null,null,null,null,null,null,null,85,"FP001-025"]
["MD67-2","TW300",null,null,null,null,null,null,null,null,null,null,null,null,null,175,"FP001-026"]
["MD67-4","TW300","PC21-72 FOC",null,null,null,null,null,null,null,null,null,null,null,null,110,"FP001-027"]
["MD67-4","TW300",null,null,null,null,null,null,null,null,null,null,null,null,null,40,"FP001-028"]
["MD67-4","TW300",null,null,null,null,null,null,null,null,null,null,null,null,null,170,"FP001-029"]
["MD67-4","TW300",null,null,null,null,null,null,null,null,null,null,null,null,null,75,"FP001-030"]
["MD67-4","PC21 96 FOC",null,null,null,null,null,null,null,null,null,null,null,null,null,215,"FP001-031"]
["MD67-4","TW300",null,null,null,null,null,null,null,null,null,null,null,null,null,40,"FP001-032"]
["MD67-4","TW300",null,null,null,null,null,null,null,null,null,null,null,null,null,55,"FP001-033"]
["MD67-4","TW300",null,null,null,null,null,null,null,null,null,null,null,null,null,55,"FP001-034"]
["MD67-4","TW300","PC21-48 FOC",null,null,null,null,null,null,null,null,null,null,null,null,135,"FP001-001"]
["MD67-4","TW300","PC21-48 FOC",null,null,null,null,null,null,null,null,null,null,null,null,160,"FP001-002"]
["MD67-4","TW300","PC21-48 FOC",null,null,null,null,null,null,null,null,null,null,null,null,80,"FP001-003"]
["MD67-4","TW300",null,null,null,null,null,null,null,null,null,null,null,null,null,185,"FP001-004"]
["MD67-4","TW300",null,null,null,null,null,null,null,null,null,null,null,null,null,186,"FP001-005"]
["MD67-4","TW300","PC21 24 FOC",null,null,null,null,null,null,null,null,null,null,null,null,187,"FP001-006"]
["MD67-4","TW300","PC21 96 FOC",null,null,null,null,null,null,null,null,null,null,null,null,90,"FP001-007"]
["MD67-4","TW300","PC21 96 FOC",null,null,null,null,null,null,null,null,null,null,null,null,170,"FP001-008"]
["MD67-4","TW300","PC21-96 FOC",null,null,null,null,null,null,null,null,null,null,null,null,70,"FP001-009"]
["MD67-7","TW300",null,null,null,null,null,null,null,null,null,null,null,null,null,80,"FP001-010"]
["MD67-7","TW300",null,null,null,null,null,null,null,null,null,null,null,null,null,45,"FP001-011"]
["MD67-7","TW300",null,null,null,null,null,null,null,null,null,null,null,null,null,210,"FP001-012"]
["MD67-7","TW300",null,null,null,null,null,null,null,null,null,null,null,null,null,170,"FP001-013"]
["MD67-7","TW300",null,null,null,null,null,null,null,null,null,null,null,null,null,171,"FP001-014"]
["MD67-7","TW300",null,null,null,null,null,null,null,null,null,null,null,null,null,190,"FP001-015"]
["MD67-7","TW300",null,null,null,null,null,null,null,null,null,null,null,null,null,200,"FP001-016"]
["MD67-7","TW300",null,null,null,null,null,null,null,null,null,null,null,null,null,105,"FP001-017"]
["MD67-7","TW300",null,null,null,null,null,null,null,null,null,null,null,null,null,110,"FP001-018"]
["MD67-7","TW300",null,null,null,null,null,null,null,null,null,null,null,null,null,180,"FP001-019"]
["TW300","LO345","PC21-48 FOC",null,null,null,null,null,null,null,null,null,null,null,null,181,"FP001-020"]
["TW300","LO345","PC21-48 FOC",null,null,null,null,null,null,null,null,null,null,null,null,115,"FP001-021"]
["TW300","LO345","PC21-48 FOC",null,null,null,null,null,null,null,null,null,null,null,null,200,"FP001-022"]
["TW300","LO345","PC21-48 FOC",null,null,null,null,null,null,null,null,null,null,null,null,190,"FP001-023"]
["TW300","LO345","PC21-48 FOC",null,null,null,null,null,null,null,null,null,null,null,null,190,"FP001-024"]
["TW300","LO345","PC21-48FOC",null,null,null,null,null,null,null,null,null,null,null,null,160,"FP001-025"]
["TW300","LO345","PC21-48 FOC",null,null,null,null,null,null,null,null,null,null,null,null,185,"FP001-026"]
["TW300","LO345","PC20-48 FOC",null,null,null,null,null,null,null,null,null,null,null,null,190,"FP001-027"]
["TW300","LO345","PC20-48 FOC",null,null,null,null,null,null,null,null,null,null,null,null,275,"FP001-028"]
["TW300","LO345",null,null,null,null,null,null,null,null,null,null,null,null,null,160,"FP001-029"]
["TW300","LO345","PC21-24 FOC",null,null,null,null,null,null,null,null,null,null,null,null,90,"FP001-030"]
["TW300","LO345","PC21 24 FOC",null,null,null,null,null,null,null,null,null,null,null,null,165,"FP001-031"]
["IN EX. 2\" CONDUIT","TW300","PC21 24 FOC","PC21 24 FOC",null,null,null,null,null,null,null,null,null,null,null,145,"FP001-032"]
["IN EX. 2\" CONDUIT","TW300","PC21 24 FOC","PC21 72 FOC","LO345",null,null,null,null,null,null,null,null,null,null,170,"FP001-033"]
["IN EX. 2\" CONDUIT","TW300","PC21 24 FOC","PC21 72 FOC","LO345",null,null,null,null,null,null,null,null,null,null,215,"FP001-034"]
["IN EX. 2\" CONDUIT","TW300","PC21 24 FOC","PC21 72 FOC","LO345",null,null,null,null,null,null,null,null,null,null,200,"FP001-001"]
["TW300","LO345","PC21-96 FOC",null,null,null,null,null,null,null,null,null,null,null,null,195,"FP001-002"]
["TW300","LO345","PC21-96 FOC",null,null,null,null,null,null,null,null,null,null,null,null,235,"FP001-003"]
["TW300","LO345","PC21-96 FOC",null,null,null,null,null,null,null,null,null,null,null,null,180,"FP001-004"]
["TW300","LO345","PC21-96 FOC",null,null,null,null,null,null,null,null,null,null,null,null,115,"FP001-005"]
["TW300","LO345","PC21-96 FOC",null,null,null,null,null,null,null,null,null,null,null,null,270,"FP001-006"]
["TW300","LO345","PC21-96 FOC",null,null,null,null,null,null,null,null,null,null,null,null,110,"FP001-007"]
["TW300","LO345","PC21-96 FOC","PC21-24 FOC",null,null,null,null,null,null,null,null,null,null,null,111,"FP001-008"]
["TW300","LO345","PC21-96 FOC","PC21-24 FOC",null,null,null,null,null,null,null,null,null,null,null,200,"FP001-009"]
["TW300","LO345","PC21-96 FOC","PC21- 24 FOC",null,null,null,null,null,null,null,null,null,null,null,180,"FP001-010"]
["TW300","LO345","PC21-96 FOC","PC21-24 FOC",null,null,null,null,null,null,null,null,null,null,null,150,"FP001-011"]
["TW300","LO345","PC21-96 FOC","PC21-24 FOC",null,null,null,null,null,null,null,null,null,null,null,85,"FP001-012"]
["TW300","LO345","PC21-96 FOC","PC21-24 FOC",null,null,null,null,null,null,null,null,null,null,null,90,"FP001-013"]
["TW300","LO345","PC21-96 FOC","PC21-96 FOC",null,null,null,null,null,null,null,null,null,null,null,90,"FP001-014"]
["TW300","LO345","PC20-288 MFOC","PC21-96 FOC",null,null,null,null,null,null,null,null,null,null,null,85,"FP001-015"]
["TW300","LO345","PC20-288 MFOC","PC21-96 MFOC",null,null,null,null,null,null,null,null,null,null,null,170,"FP001-016"]
["TW300","LO345","PC20-288 MFOC","PC20-288 MFOC","PC21-96 FOC",null,null,null,null,null,null,null,null,null,null,170,"FP001-017"]
["TW300","LO345","PC20-288 MFOC","PC20-288 MFOC","PC21-96 FOC",null,null,null,null,null,null,null,null,null,null,125,"FP001-018"]
["TW300","LO345","PC20-288 MFOC","PC20-288 MFOC",null,null,null,null,null,null,null,null,null,null,null,126,"FP001-019"]
["TW300","LO345","PC21-48 FOC",null,null,null,null,null,null,null,null,null,null,null,null,160,"FP001-020"]
["TW300","LO345","PC21-48 FOC",null,null,null,null,null,null,null,null,null,null,null,null,240,"FP001-021"]
["TW300","LO345","PC20-288 MFOC","PC20-288 MFOC","PC21-144 FOC",null,null,null,null,null,null,null,null,null,null,630,"FP001-022"]
["TW300","LO345","PC20-288 MFOC","PC20-288 MFOC","PC21-144 FOC",null,null,null,null,null,null,null,null,null,null,10,"FP001-023"]
["TW300","LO345","PC20-288 MFOC","PC20-288 MFOC","PC21-144 FOC",null,null,null,null,null,null,null,null,null,null,130,"FP001-024"]
["TW300","LO345","PC20 288 MFOC","PC20 288 MFOC","PC21-144 FOC",null,null,null,null,null,null,null,null,null,null,30,"FP001-025"]
["TW300","LO345","PC21-96 FOC",null,null,null,null,null,null,null,null,null,null,null,null,200,"FP001-026"]
["TW300","LO345","PC21-96 FOC",null,null,null,null,null,null,null,null,null,null,null,null,65,"FP001-027"]
["TW300","LO345","PC21-48 FOC",null,null,null,null,null,null,null,null,null,null,null,null,165,"FP001-028"]
["TW300","LO345","PC21-48 FOC",null,null,null,null,null,null,null,null,null,null,null,null,180,"FP001-029"]
["TW300","LO345","PC21-48 FOC",null,null,null,null,null,null,null,null,null,null,null,null,210,"FP001-030"]
["TW300","LO345","PC21-48 FOC",null,null,null,null,null,null,null,null,null,null,null,null,175,"FP001-031"]
["TW300","LO345","PC21-48 FOC",null,null,null,null,null,null,null,null,null,null,null,null,160,"FP001-032"]
["TW300","LO345",null,null,null,null,null,null,null,null,null,null,null,null,null,165,"FP001-033"]
["B51","TW300","PC21 48 FOC",null,null,null,null,null,null,null,null,null,null,null,null,100,"FP001-034"]
["MD67-4","TW300",null,null,null,null,null,null,null,null,null,null,null,null,null,140,"FP001-001"]
["MD67-4","TW300","PC21 24 FOC",null,null,null,null,null,null,null,null,null,null,null,null,90,"FP001-002"]
["MD67-4","TW300",null,null,null,null,null,null,null,null,null,null,null,null,null,180,"FP001-003"]
["B51","TW300",null,null,null,null,null,null,null,null,null,null,null,null,null,55,"FP001-004"]
["B51","TW300",null,null,null,null,null,null,null,null,null,null,null,null,null,40,"FP001-005"]
["B51","TW300",null,null,null,null,null,null,null,null,null,null,null,null,null,100,"FP001-006"]
["B51","TW300",null,null,null,null,null,null,null,null,null,null,null,null,null,60,"FP001-007"]
["MD67-4","TW300",null,null,null,null,null,null,null,null,null,null,null,null,null,205,"FP001-008"]
["B51","TW300",null,null,null,null,null,null,null,null,null,null,null,null,null,130,"FP001-009"]
["B51","TW300",null,null,null,null,null,null,null,null,null,null,null,null,null,85,"FP001-010"]
["B51","TW300",null,null,null,null,null,null,null,null,null,null,null,null,null,60,"FP001-011"]
["B51","TW300",null,null,null,null,null,null,null,null,null,null,null,null,null,85,"FP001-012"]
["B51","TW300",null,null,null,null,null,null,null,null,null,null,null,null,null,80,"FP001-013"]
["B51","TW300",null,null,null,null,null,null,null,null,null,null,null,null,null,140,"FP001-014"]
["B51","TW300",null,null,null,null,null,null,null,null,null,null,null,null,null,155,"FP001-015"]
["B51","TW300",null,null,null,null,null,null,null,null,null,null,null,null,null,100,"FP001-016"]
["B51","TW300",null,null,null,null,null,null,null,null,null,null,null,null,null,100,"FP001-017"]
["B51","TW300",null,null,null,null,null,null,null,null,null,null,null,null,null,155,"FP001-018"]
["B51","TW300",null,null,null,null,null,null,null,null,null,null,null,null,null,120,"FP001-019"]
["B51","TW300",null,null,null,null,null,null,null,null,null,null,null,null,null,105,"FP001-020"]
["B51","TW300",null,null,null,null,null,null,null,null,null,null,null,null,null,160,"FP001-021"]
["B51","TW300",null,null,null,null,null,null,null,null,null,null,null,null,null,95,"FP001-022"]
["B51","TW300",null,null,null,null,null,null,null,null,null,null,null,null,null,95,"FP001-023"]
["MD67-4","TW300",null,null,null,null,null,null,null,null,null,null,null,null,null,70,"FP001-024"]
["B51","TW300",null,null,null,null,null,null,null,null,null,null,null,null,null,170,"FP001-025"]
["B51","TW300",null,null,null,null,null,null,null,null,null,null,null,null,null,200,"FP001-026"]
["B51","TW300",null,null,null,null,null,null,null,null,null,null,null,null,null,60,"FP001-027"]
["B51","TW300",null,null,null,null,null,null,null,null,null,null,null,null,null,380,"FP001-028"]
["B51","TW300",null,null,null,null,null,null,null,null,null,null,null,null,null,140,"FP001-029"]
["B51","TW300",null,null,null,null,null,null,null,null,null,null,null,null,null,180,"FP001-030"]
["B51","TW300",null,null,null,null,null,null,null,null,null,null,null,null,null,260,"FP001-031"]
["B51","TW300",null,null,null,null,null,null,null,null,null,null,null,null,null,130,"FP001-032"]
["B51","TW300",null,null,null,null,null,null,null,null,null,null,null,null,null,55,"FP001-033"]
["B51","TW300",null,null,null,null,null,null,null,null,null,null,null,null,null,60,"FP001-034"]
["B51","TW300",null,null,null,null,null,null,null,null,null,null,null,null,null,65,"FP001-001"]
["B51","TW300",null,null,null,null,null,null,null,null,null,null,null,null,null,130,"FP001-002"]
["B51","TW300",null,null,null,null,null,null,null,null,null,null,null,null,null,60,"FP001-003"]
["B51","TW300",null,null,null,null,null,null,null,null,null,null,null,null,null,90,"FP001-004"]
["B51","TW300","PC21 24 FOC",null,null,null,null,null,null,null,null,null,null,null,null,670,"FP001-005"]
["B51","TW300","PC21 24 FOC ",null,null,null,null,null,null,null,null,null,null,null,null,160,"FP001-006"]
["MD67-2","TW300","PC21 24 FOC ",null,null,null,null,null,null,null,null,null,null,null,null,165,"FP001-007"]
["MD67-2","TW300","PC21 24 FOC ",null,null,null,null,null,null,null,null,null,null,null,null,80,"FP001-008"]
["B51","TW300","PC21 24 FOC",null,null,null,null,null,null,null,null,null,null,null,null,245,"FP001-009"]
["MD67-4","TW300","723B 48 FOC",null,null,null,null,null,null,null,null,null,null,null,null,315,"FP001-010"]
["B51","TW300","PC21 48 FOC",null,null,null,null,null,null,null,null,null,null,null,null,190,"FP001-011"]
["B51","TW300","PC21 96 FOC",null,null,null,null,null,null,null,null,null,null,null,null,175,"FP001-012"]
["B51","TW300","PC21 96 FOC",null,null,null,null,null,null,null,null,null,null,null,null,315,"FP001-013"]
["B51","TW300","PC21 96 FOC",null,null,null,null,null,null,null,null,null,null,null,null,105,"FP001-014"]
["B51","TW300","PC21 96 FOC",null,null,null,null,null,null,null,null,null,null,null,null,185,"FP001-015"]
["MD67-2","TW300","PC21 96 FOC",null,null,null,null,null,null,null,null,null,null,null,null,100,"FP001-016"]
["B51","TW300","PC21 96 FOC",null,null,null,null,null,null,null,null,null,null,null,null,295,"FP001-017"]
["B51","TW300","PC21 96 FOC",null,null,null,null,null,null,null,null,null,null,null,null,170,"FP001-018"]
["MD67-4","TW300","PC21 96 FOC",null,null,null,null,null,null,null,null,null,null,null,null,210,"FP001-019"]
["B51","TW300","PC21 96 FOC",null,null,null,null,null,null,null,null,null,null,null,null,160,"FP001-020"]
["MD67-4","TW300","PC21 24 FOC ",null,null,null,null,null,null,null,null,null,null,null,null,120,"FP001-021"]
["B51","TW300","PC21 24 FOC",null,null,null,null,null,null,null,null,null,null,null,null,60,"FP001-022"]
["MD67-4","TW300","PC21 24 FOC",null,null,null,null,null,null,null,null,null,null,null,null,55,"FP001-023"]
["MD67-4","TW300","PC21 24 FOC",null,null,null,null,null,null,null,null,null,null,null,null,60,"FP001-024"]
["MD67-4","TW300","PC21 24 FOC",null,null,null,null,null,null,null,null,null,null,null,null,65,"FP001-025"]
["MD67-4","TW300","PC21 24 FOC",null,null,null,null,null,null,null,null,null,null,null,null,70,"FP001-026"]
["MD67-4","TW300","PC21 24 FOC",null,null,null,null,null,null,null,null,null,null,null,null,90,"FP001-027"]
["MD67-4","TW300","PC21 24 FOC",null,null,null,null,null,null,null,null,null,null,null,null,100,"FP001-028"]
["B51","TW300","PC21 24 FOC",null,null,null,null,null,null,null,null,null,null,null,null,140,"FP001-029"]
["MD67-4","TW300","PC21 24 FOC",null,null,null,null,null,null,null,null,null,null,null,null,45,"FP001-030"]
["MD67-4","TW300","PC21 24 FOC ",null,null,null,null,null,null,null,null,null,null,null,null,50,"FP001-031"]
["MD67-4","TW300","PC21 24 FOC ",null,null,null,null,null,null,null,null,null,null,null,null,95,"FP001-032"]
["B51","TW300","PC21 24 FOC ",null,null,null,null,null,null,null,null,null,null,null,null,45,"FP001-033"]
["B51","TW300","PC21 96 FOC",null,null,null,null,null,null,null,null,null,null,null,null,55,"FP001-034"]
["MD67-4","TW300","PC21 96 FOC",null,null,null,null,null,null,null,null,null,null,null,null,110,"FP001-001"]
["B51","TW300","PC21 96 FOC",null,null,null,null,null,null,null,null,null,null,null,null,195,"FP001-002"]
["B51","TW300","PC21 96 FOC",null,null,null,null,null,null,null,null,null,null,null,null,165,"FP001-003"]
["B51","TW300","PC21 96 FOC",null,null,null,null,null,null,null,null,null,null,null,null,80,"FP001-004"]
["B51","TW300","PC21 96 FOC ",null,null,null,null,null,null,null,null,null,null,null,null,135,"FP001-005"]
["B51","TW300","PC21 96 FOC",null,null,null,null,null,null,null,null,null,null,null,null,285,"FP001-006"]
["B51","TW300","PC21 24 FOC",null,null,null,null,null,null,null,null,null,null,null,null,315,"FP001-007"]
["B51","TW300","PC21 72 FOC",null,null,null,null,null,null,null,null,null,null,null,null,185,"FP001-008"]
["B51","TW300","PC21 72 FOC",null,null,null,null,null,null,null,null,null,null,null,null,165,"FP001-009"]
["B51","TW300","PC21 72 FOC",null,null,null,null,null,null,null,null,null,null,null,null,120,"FP001-010"]
["B51","TW300","PC21 72 FOC",null,null,null,null,null,null,null,null,null,null,null,null,120,"FP001-011"]
["B51","TW300","PC21 72 FOC",null,null,null,null,null,null,null,null,null,null,null,null,175,"FP001-012"]
["B51","TW300","PC21 24 FOC",null,null,null,null,null,null,null,null,null,null,null,null,290,"FP001-013"]
["B51","TW300","PC21 24 FOC",null,null,null,null,null,null,null,null,null,null,null,null,120,"FP001-014"]
["B51","TW300","PC21 24 FOC",null,null,null,null,null,null,null,null,null,null,null,null,190,"FP001-015"]
["MD67-4","TW300","PC21 24 FOC",null,null,null,null,null,null,null,null,null,null,null,null,335,"FP001-016"]
["B51","TW300","PC21 24 FOC",null,null,null,null,null,null,null,null,null,null,null,null,165,"FP001-017"]
["B51","TW300","PC21 24 FOC",null,null,null,null,null,null,null,null,null,null,null,null,250,"FP001-018"]
["MD67-4","TW300","PC21 24 FOC",null,null,null,null,null,null,null,null,null,null,null,null,165,"FP001-019"]
["B51","TW300","PC21 24 FOC ",null,null,null,null,null,null,null,null,null,null,null,null,260,"FP001-020"]
["B51","TW300","PC21 24 FOC",null,null,null,null,null,null,null,null,null,null,null,null,60,"FP001-021"]
["MD67-4","TW300","PC21 24 FOC","PC21 24 FOC",null,null,null,null,null,null,null,null,null,null,null,60,"FP001-022"]
["B51","TW300","PC21 24 FOC ",null,null,null,null,null,null,null,null,null,null,null,null,200,"FP001-023"]
["B51","TW300","PC21 24 FOC ",null,null,null,null,null,null,null,null,null,null,null,null,135,"FP001-024"]
["B51","TW300","PC21 24 FOC ",null,null,null,null,null,null,null,null,null,null,null,null,145,"FP001-025"]
["MD67-4","TW300","PC21 24 FOC",null,null,null,null,null,null,null,null,null,null,null,null,180,"FP001-026"]
["MD67-4","TW300","PC21 24 FOC",null,null,null,null,null,null,null,null,null,null,null,null,90,"FP001-027"]
["B51","TW300","PC21 24 FOC",null,null,null,null,null,null,null,null,null,null,null,null,90,"FP001-028"]
["B51","TW300","PC21 24 FOC ",null,null,null,null,null,null,null,null,null,null,null,null,145,"FP001-029"]
["MD67-4","TW300","PC21 24 FOC ","PC21 96 FOC",null,null,null,null,null,null,null,null,null,null,null,115,"FP001-030"]
["B51","TW300","PC21 24 FOC",null,null,null,null,null,null,null,null,null,null,null,null,180,"FP001-031"]
["B51","TW300","PC21 24 FOC",null,null,null,null,null,null,null,null,null,null,null,null,95,"FP001-032"]
["B51","TW300","PC21 24 FOC",null,null,null,null,null,null,null,null,null,null,null,null,215,"FP001-033"]
["MD67-4","TW300","PC21 24 FOC",null,null,null,null,null,null,null,null,null,null,null,null,55,"FP001-034"]
["MD67-4","TW300","PC21 24 FOC","PC21 96 FOC",null,null,null,null,null,null,null,null,null,null,null,165,"FP001-001"]
["MD67-4","TW300","PC21 24 FOC","PC21 96 FOC",null,null,null,null,null,null,null,null,null,null,null,185,"FP001-002"]
["MD67-4","TW300","PC21 24 FOC","PC21 96 FOC",null,null,null,null,null,null,null,null,null,null,null,170,"FP001-003"]
["B51","TW300","PC21 24 FOC",null,null,null,null,null,null,null,null,null,null,null,null,175,"FP001-004"]
["MD67-4","TW300","PC21 24 FOC",null,null,null,null,null,null,null,null,null,null,null,null,175,"FP001-005"]
["B51","TW300","PC21 24 FOC",null,null,null,null,null,null,null,null,null,null,null,null,155,"FP001-006"]
["MD67-4","TW300","PC21 24 FOC",null,null,null,null,null,null,null,null,null,null,null,null,90,"FP001-007"]
["B51","TW300","PC21 24 FOC",null,null,null,null,null,null,null,null,null,null,null,null,90,"FP001-008"]
["B51","TW300","PC21 24 FOC",null,null,null,null,null,null,null,null,null,null,null,null,160,"FP001-009"]
["B51","TW300","PC21 24 FOC",null,null,null,null,null,null,null,null,null,null,null,null,165,"FP001-010"]
["EX. CONDUIT","TW300","PC21 24 FOC",null,null,null,null,null,null,null,null,null,null,null,null,705,"FP001-011"]
["IN EX. CONDUIT","TW300","PC21 24 FOC","PC21 24 FOC",null,null,null,null,null,null,null,null,null,null,null,185,"FP001-012"]
["EX. CONDUIT","TW300","PC21 24 FOC","PC21 24 FOC",null,null,null,null,null,null,null,null,null,null,null,180,"FP001-013"]
["EX. CONDUIT","TW300","PC21 24 FOC","PC21 24 FOC",null,null,null,null,null,null,null,null,null,null,null,185,"FP001-014"]
["EX CONDUIT","TW300","PC21 24 FOC","PC21 24 FOC",null,null,null,null,null,null,null,null,null,null,null,170,"FP001-015"]
["IN EX. CONDUIT","TW300","PC21 24 FOC","PC21 48 FOC",null,null,null,null,null,null,null,null,null,null,null,90,"FP001-016"]
["IN EX. CONDUIT","TW300","PC21 24 FOC","PC21 288 FOC","LO345",null,null,null,null,null,null,null,null,null,null,35,"FP001-017"]
["IN EX. CONDUIT","TW300","PC21 24 FOC","PC21 48 FOC","LO345",null,null,null,null,null,null,null,null,null,null,85,"FP001-018"]
["IN EX. CONDUIT","TW300","PC21 24 FOC","PC21 48 FOC","LO345",null,null,null,null,null,null,null,null,null,null,160,"FP001-019"]
["IN EX. CONDUIT","TW300","PC21 24 FOC","PC21 48 FOC","LO345",null,null,null,null,null,null,null,null,null,null,150,"FP001-020"]
["IN EX. CONDUIT","TW300","PC21 24 FOC","PC21 48 FOC","LO345",null,null,null,null,null,null,null,null,null,null,140,"FP001-021"]
["IN EX. CONDUIT","TW300","PC21 24 FOC","PC21 48 FOC","LO345",null,null,null,null,null,null,null,null,null,null,170,"FP001-022"]
["IN EX. CONDUIT","TW300","PC21 24 FOC ","LO345",null,null,null,null,null,null,null,null,null,null,null,80,"FP001-023"]
["IN EX. CONDUIT","TW300","PC21 24 FOC","PC21 288 FOC","LO345",null,null,null,null,null,null,null,null,null,null,140,"FP001-024"]
["IN EX. CONDUIT","TW300","PC21 24 FOC","PC21 48 FOC","LO345",null,null,null,null,null,null,null,null,null,null,230,"FP001-025"]
["MD67-4","TW300","PC21 24 FOC",null,null,null,null,null,null,null,null,null,null,null,null,75,"FP001-026"]
["B51","TW300","PC21 24 FOC",null,null,null,null,null,null,null,null,null,null,null,null,195,"FP001-027"]
["B51","TW300","PC21 24 FOC",null,null,null,null,null,null,null,null,null,null,null,null,170,"FP001-028"]
["B51","TW300","PC21 24 FOC",null,null,null,null,null,null,null,null,null,null,null,null,195,"FP001-029"]
["MD67-4","TW300","PC21 24 FOC",null,null,null,null,null,null,null,null,null,null,null,null,120,"FP001-030"]
["B51","TW300","PC21 24 FOC",null,null,null,null,null,null,null,null,null,null,null,null,135,"FP001-031"]
["B51","TW300","PC21 24 FOC",null,null,null,null,null,null,null,null,null,null,null,null,160,"FP001-032"]
["MD67-4","TW300","PC21 24 FOC",null,null,null,null,null,null,null,null,null,null,null,null,80,"FP001-033"]
["MD67-4","TW300","PC21 24 FOC",null,null,null,null,null,null,null,null,null,null,null,null,175,"FP001-034"]
["MD67-4","TW300","PC21 24 FOC",null,null,null,null,null,null,null,null,null,null,null,null,155,"FP001-001"]
["MD67-4","TW300","PC21 24 FOC",null,null,null,null,null,null,null,null,null,null,null,null,160,"FP001-002"]
["B51","TW300","PC21 24 FOC",null,null,null,null,null,null,null,null,null,null,null,null,200,"FP001-003"]
["B51","TW300","PC21 24 FOC",null,null,null,null,null,null,null,null,null,null,null,null,95,"FP001-004"]
["B51","TW300","PC21 24 FOC",null,null,null,null,null,null,null,null,null,null,null,null,180,"FP001-005"]
["B51","TW300","PC21 24 FOC",null,null,null,null,null,null,null,null,null,null,null,null,155,"FP001-006"]
["MD67-2","TW300","PC21 24 FOC",null,null,null,null,null,null,null,null,null,null,null,null,80,"FP001-007"]
["B51","TW300","PC21 24 FOC",null,null,null,null,null,null,null,null,null,null,null,null,160,"FP001-008"]
["B51","TW300","PC21 24 FOC",null,null,null,null,null,null,null,null,null,null,null,null,165,"FP001-009"]
["B51 (2)","TW300","PC21 24 FOC",null,null,null,null,null,null,null,null,null,null,null,null,395,"FP001-010"]
["B51 (2)","TW300","PC21 24 FOC",null,null,null,null,null,null,null,null,null,null,null,null,295,"FP001-011"]
["MD67-2","TW300","PC21 24 FOC",null,null,null,null,null,null,null,null,null,null,null,null,95,"FP001-012"]
["B51","TW300","PC21 24 FOC",null,null,null,null,null,null,null,null,null,null,null,null,190,"FP001-013"]
["B51","TW300","PC21 24 FOC",null,null,null,null,null,null,null,null,null,null,null,null,180,"FP001-014"]
["B51","TW300","PC21 24 FOC",null,null,null,null,null,null,null,null,null,null,null,null,170,"FP001-015"]
["MD67-4","TW300","PC21 24 FOC",null,null,null,null,null,null,null,null,null,null,null,null,175,"FP001-016"]
["B51","TW300","PC21 24 FOC",null,null,null,null,null,null,null,null,null,null,null,null,85,"FP001-017"]
["B51","TW300","PC21 24 FOC ",null,null,null,null,null,null,null,null,null,null,null,null,275,"FP001-018"]
["B51","TW300","PC21 24 FOC",null,null,null,null,null,null,null,null,null,null,null,null,165,"FP001-019"]
["MD67-4","TW300","PC21 24 FOC",null,null,null,null,null,null,null,null,null,null,null,null,175,"FP001-020"]
["B51","TW300","PC21 24 FOC",null,null,null,null,null,null,null,null,null,null,null,null,250,"FP001-021"]
["B51","TW300","PC21 24 FOC","PC21 24 FOC",null,null,null,null,null,null,null,null,null,null,null,330,"FP001-022"]
["MD67-4","TW300","PC21 24 FOC","PC21 24 FOC",null,null,null,null,null,null,null,null,null,null,null,370,"FP001-023"]
["MD67-4","TW300","PC21 24 FOC",null,null,null,null,null,null,null,null,null,null,null,null,270,"FP001-024"]
["MD67-4","TW300","PC21 24 FOC","PC21 24 FOC",null,null,null,null,null,null,null,null,null,null,null,440,"FP001-025"]
["MD67-4","TW300","PC21 24 FOC","PC21 24 FOC",null,null,null,null,null,null,null,null,null,null,null,360,"FP001-026"]
["MD67-4","TW300","PC21 24 FOC",null,null,null,null,null,null,null,null,null,null,null,null,135,"FP001-027"]
["MD67-4","TW300","PC21 24 FOC ",null,null,null,null,null,null,null,null,null,null,null,null,130,"FP001-028"]
["B51","TW300","PC21 24 FOC",null,null,null,null,null,null,null,null,null,null,null,null,130,"FP001-029"]
["MD67-4","TW300","PC21 24 FOC",null,null,null,null,null,null,null,null,null,null,null,null,140,"FP001-030"]
["MD67-4","TW300","PC21 24 FOC",null,null,null,null,null,null,null,null,null,null,null,null,170,"FP001-031"]
["MD67-4","TW300","PC21 24 FOC",null,null,null,null,null,null,null,null,null,null,null,null,85,"FP001-032"]
["MD67-4","TW300",null,null,null,null,null,null,null,null,null,null,null,null,null,60,"FP001-033"]
["IN EX. CONDUIT","B51","TW300","PC21 48 FOC",null,null,null,null,null,null,null,null,null,null,null,145,"FP001-034"]
["IN EX. CONDUIT","B51","TW300","PC21 48 FOC",null,null,null,null,null,null,null,null,null,null,null,225,"FP001-001"]
["IN EX. CONDUIT","B51","TW300","PC21 24 FOC",null,null,null,null,null,null,null,null,null,null,null,150,"FP001-002"]
["IN EX. CONDUIT","MD67-4","TW300","PC21 24 FOC",null,null,null,null,null,null,null,null,null,null,null,85,"FP001-003"]
["IN EX. CONDUIT","B51","TW300",null,null,null,null,null,null,null,null,null,null,null,null,145,"FP001-004"]
["B51","TW300","PC21 96 FOC",null,null,null,null,null,null,null,null,null,null,null,null,135,"FP001-005"]
["B51","TW300","PC21 96 FOC",null,null,null,null,null,null,null,null,null,null,null,null,110,"FP001-006"]
["B51","TW300","PC21 96 FOC",null,null,null,null,null,null,null,null,null,null,null,null,185,"FP001-007"]
["B51","TW300","PC21 96 FOC",null,null,null,null,null,null,null,null,null,null,null,null,195,"FP001-008"]
["B51","TW300","PC21 96 FOC",null,null,null,null,null,null,null,null,null,null,null,null,335,"FP001-009"]
["B51","TW300","PC21 96 FOC",null,null,null,null,null,null,null,null,null,null,null,null,75,"FP001-010"]
["B51","TW300","PC21 96 FOC",null,null,null,null,null,null,null,null,null,null,null,null,170,"FP001-011"]
["B51","TW300","PC21 96 FOC",null,null,null,null,null,null,null,null,null,null,null,null,70,"FP001-012"]
["MD67-4","TW300",null,null,null,null,null,null,null,null,null,null,null,null,null,155,"FP001-013"]
["B51","TW300","PC21 24 FOC",null,null,null,null,null,null,null,null,null,null,null,null,105,"FP001-014"]
["B51","TW300","PC21 24 FOC",null,null,null,null,null,null,null,null,null,null,null,null,155,"FP001-015"]
["B51","TW300",null,null,null,null,null,null,null,null,null,null,null,null,null,95,"FP001-016"]
["B51","TW300",null,null,null,null,null,null,null,null,null,null,null,null,null,105,"FP001-017"]
["MD67-7","TW300",null,null,null,null,null,null,null,null,null,null,null,null,null,55,"FP001-018"]
["MD67-7","TW300",null,null,null,null,null,null,null,null,null,null,null,null,null,160,"FP001-019"]
["B51","TW300",null,null,null,null,null,null,null,null,null,null,null,null,null,65,"FP001-020"]
["B51","TW300",null,null,null,null,null,null,null,null,null,null,null,null,null,170,"FP001-021"]
["B51","TW300","PC21 24 FOC",null,null,null,null,null,null,null,null,null,null,null,null,75,"FP001-022"]
["B51","TW300","PC21 24 FOC",null,null,null,null,null,null,null,null,null,null,null,null,55,"FP001-023"]
["B51","TW300",null,null,null,null,null,null,null,null,null,null,null,null,null,170,"FP001-024"]
["B51","TW300",null,null,null,null,null,null,null,null,null,null,null,null,null,90,"FP001-025"]
["B51","TW300",null,null,null,null,null,null,null,null,null,null,null,null,null,60,"FP001-026"]
["B51","TW300",null,null,null,null,null,null,null,null,null,null,null,null,null,55,"FP001-027"]
["B51","TW300",null,null,null,null,null,null,null,null,null,null,null,null,null,55,"FP001-028"]
["B51","TW300",null,null,null,null,null,null,null,null,null,null,null,null,null,85,"FP001-029"]
["B51","TW300",null,null,null,null,null,null,null,null,null,null,null,null,null,55,"FP001-030"]
["B51","TW300",null,null,null,null,null,null,null,null,null,null,null,null,null,105,"FP001-031"]
["B51 (2)","TW300",null,null,null,null,null,null,null,null,null,null,null,null,null,55,"FP001-032"]
["B51","TW300",null,null,null,null,null,null,null,null,null,null,null,null,null,185,"FP001-033"]
["MD67-4","TW300",null,null,null,null,null,null,null,null,null,null,null,null,null,55,"FP001-034"]
["B51","TW300",null,null,null,null,null,null,null,null,null,null,null,null,null,75,"FP001-001"]
["B51","TW300",null,null,null,null,null,null,null,null,null,null,null,null,null,55,"FP001-002"]
["B51","TW300",null,null,null,null,null,null,null,null,null,null,null,null,null,55,"FP001-003"]
["B51","TW300",null,null,null,null,null,null,null,null,null,null,null,null,null,55,"FP001-004"]
["B51","TW300",null,null,null,null,null,null,null,null,null,null,null,null,null,90,"FP001-005"]
["B51","TW300",null,null,null,null,null,null,null,null,null,null,null,null,null,55,"FP001-006"]
["B51","TW300",null,null,null,null,null,null,null,null,null,null,null,null,null,85,"FP001-007"]
["B51","TW300",null,null,null,null,null,null,null,null,null,null,null,null,null,55,"FP001-008"]
["B51","TW300",null,null,null,null,null,null,null,null,null,null,null,null,null,55,"FP001-009"]
["B51","TW300",null,null,null,null,null,null,null,null,null,null,null,null,null,125,"FP001-010"]
["B51","TW300",null,null,null,null,null,null,null,null,null,null,null,null,null,115,"FP001-011"]
["B51","TW300",null,null,null,null,null,null,null,null,null,null,null,null,null,55,"FP001-012"]
["B51","TW300",null,null,null,null,null,null,null,null,null,null,null,null,null,190,"FP001-013"]
["B51","TW300",null,null,null,null,null,null,null,null,null,null,null,null,null,145,"FP001-014"]
["B51","TW300",null,null,null,null,null,null,null,null,null,null,null,null,null,75,"FP001-015"]
["B51","TW300",null,null,null,null,null,null,null,null,null,null,null,null,null,55,"FP001-016"]
["B51","TW300",null,null,null,null,null,null,null,null,null,null,null,null,null,95,"FP001-017"]
["B51","TW300",null,null,null,null,null,null,null,null,null,null,null,null,null,210,"FP001-018"]
["MD67-7","TW300","PC21 48 FOC",null,null,null,null,null,null,null,null,null,null,null,null,55,"FP001-019"]
["B51","TW300",null,null,null,null,null,null,null,null,null,null,null,null,null,90,"FP001-020"]
["B51","TW300",null,null,null,null,null,null,null,null,null,null,null,null,null,55,"FP001-021"]
["B51","TW300",null,null,null,null,null,null,null,null,null,null,null,null,null,85,"FP001-022"]
["B51","TW300",null,null,null,null,null,null,null,null,null,null,null,null,null,100,"FP001-023"]
["B51","TW300",null,null,null,null,null,null,null,null,null,null,null,null,null,55,"FP001-024"]
["B51","TW300",null,null,null,null,null,null,null,null,null,null,null,null,null,175,"FP001-025"]
["B51","TW300","PC21 48 FOC",null,null,null,null,null,null,null,null,null,null,null,null,50,"FP001-026"]
["B51","TW300",null,null,null,null,null,null,null,null,null,null,null,null,null,130,"FP001-027"]
["B51","TW300",null,null,null,null,null,null,null,null,null,null,null,null,null,160,"FP001-028"]
["MD67-4","TW300",null,null,null,null,null,null,null,null,null,null,null,null,null,100,"FP001-029"]
["B51","TW300",null,null,null,null,null,null,null,null,null,null,null,null,null,105,"FP001-030"]
["MD67-7","TW300",null,null,null,null,null,null,null,null,null,null,null,null,null,285,"FP001-031"]
["MD67-7","TW300",null,null,null,null,null,null,null,null,null,null,null,null,null,55,"FP001-032"]
["B51","TW300",null,null,null,null,null,null,null,null,null,null,null,null,null,65,"FP001-033"]
["B51","TW300",null,null,null,null,null,null,null,null,null,null,null,null,null,145,"FP001-034"]
["B51","TW300",null,null,null,null,null,null,null,null,null,null,null,null,null,55,"FP001-001"]
["B51","TW300",null,null,null,null,null,null,null,null,null,null,null,null,null,95,"FP001-002"]
["MD67-7","TW300",null,null,null,null,null,null,null,null,null,null,null,null,null,105,"FP001-003"]
["MD67-4","TW300",null,null,null,null,null,null,null,null,null,null,null,null,null,65,"FP001-004"]
["B51","TW300",null,null,null,null,null,null,null,null,null,null,null,null,null,95,"FP001-005"]
["B51","TW300",null,null,null,null,null,null,null,null,null,null,null,null,null,null,"FP001-006"]
["B51","TW300",null,null,null,null,null,null,null,null,null,null,null,null,null,null,"FP001-007"]
["MD67-7","TW300",null,null,null,null,null,null,null,null,null,null,null,null,null,null,"FP001-008"]
["B51","TW300",null,null,null,null,null,null,null,null,null,null,null,null,null,null,"FP001-009"]

{"sheet":"Sheet5","index":3,"n_rows":308,"n_cols":17,"rows_kept":308,"cut":false,"hidden":false,"merged":[]}
["B51 ","TW300",null,null,null,null,null,null,null,null,null,null,null,null,null,60,"FP001-016"]
["B51 ","TW300",null,null,null,null,null,null,null,null,null,null,null,null,null,180,"FP001-022"]
["B51 ","TW300",null,null,null,null,null,null,null,null,null,null,null,null,null,60,"FP001-023"]
["B51","TW300",null,null,null,null,null,null,null,null,null,null,null,null,null,185,"FP001-025"]
["B51 ","TW300",null,null,null,null,null,null,null,null,null,null,null,null,null,160,"FP001-026"]
["B51","TW300",null,null,null,null,null,null,null,null,null,null,null,null,null,110,"FP001-029"]
["B51","TW300","PC21 24 FOC",null,null,null,null,null,null,null,null,null,null,null,null,110,"FP001-030"]
["B51","TW300","PC21 24 FOC",null,null,null,null,null,null,null,null,null,null,null,null,290,"FP001-031"]
["B51","TW300","PC21 24 FOC",null,null,null,null,null,null,null,null,null,null,null,null,310,"FP001-032"]
["B51","TW300","PC21-24 FOC",null,null,null,null,null,null,null,null,null,null,null,null,275,"FP001-033"]
["B51","TW300","PC21-24 FOC",null,null,null,null,null,null,null,null,null,null,null,null,110,"FP001-034"]
["B51","TW300",null,null,null,null,null,null,null,null,null,null,null,null,null,90,"FP001-001"]
["B51","TW300",null,null,null,null,null,null,null,null,null,null,null,null,null,65,"FP001-004"]
["B51","TW300",null,null,null,null,null,null,null,null,null,null,null,null,null,75,"FP001-005"]
["B51","TW300",null,null,null,null,null,null,null,null,null,null,null,null,null,55,"FP001-006"]
["B51 ","TW300",null,null,null,null,null,null,null,null,null,null,null,null,null,65,"FP001-007"]
["B51 ","TW300",null,null,null,null,null,null,null,null,null,null,null,null,null,55,"FP001-008"]
["B51 ","TW300",null,null,null,null,null,null,null,null,null,null,null,null,null,160,"FP001-009"]
["B51 ","TW300",null,null,null,null,null,null,null,null,null,null,null,null,null,60,"FP001-010"]
["B51","TW300",null,null,null,null,null,null,null,null,null,null,null,null,null,80,"FP001-014"]
["B51","TW300",null,null,null,null,null,null,null,null,null,null,null,null,null,50,"FP001-015"]
["B51","TW300",null,null,null,null,null,null,null,null,null,null,null,null,null,160,"FP001-016"]
["B51","TW300",null,null,null,null,null,null,null,null,null,null,null,null,null,80,"FP001-017"]
["B51","TW300",null,null,null,null,null,null,null,null,null,null,null,null,null,45,"FP001-018"]
["B51","TW300",null,null,null,null,null,null,null,null,null,null,null,null,null,80,"FP001-019"]
["B51","TW300",null,null,null,null,null,null,null,null,null,null,null,null,null,80,"FP001-020"]
["B51","TW300",null,null,null,null,null,null,null,null,null,null,null,null,null,45,"FP001-021"]
["B51","TW300",null,null,null,null,null,null,null,null,null,null,null,null,null,45,"FP001-022"]
["B51","TW300",null,null,null,null,null,null,null,null,null,null,null,null,null,120,"FP001-023"]
["B51","TW300",null,null,null,null,null,null,null,null,null,null,null,null,null,45,"FP001-024"]
["B51","TW300",null,null,null,null,null,null,null,null,null,null,null,null,null,45,"FP001-025"]
["B51","TW300",null,null,null,null,null,null,null,null,null,null,null,null,null,105,"FP001-026"]
["B51","TW300",null,null,null,null,null,null,null,null,null,null,null,null,null,80,"FP001-027"]
["B51","TW300",null,null,null,null,null,null,null,null,null,null,null,null,null,170,"FP001-028"]
["B51","TW300",null,null,null,null,null,null,null,null,null,null,null,null,null,95,"FP001-029"]
["B51","TW300",null,null,null,null,null,null,null,null,null,null,null,null,null,85,"FP001-030"]
["B51","TW300",null,null,null,null,null,null,null,null,null,null,null,null,null,90,"FP001-031"]
["B51","TW300","PC21-24 FOC",null,null,null,null,null,null,null,null,null,null,null,null,245,"FP001-004"]
["B51","TW300","PC21-24 FOC",null,null,null,null,null,null,null,null,null,null,null,null,235,"FP001-005"]
["B51","TW300","PC21-24 FOC",null,null,null,null,null,null,null,null,null,null,null,null,160,"FP001-006"]
["B51","TW300","PC21-24 FOC",null,null,null,null,null,null,null,null,null,null,null,null,145,"FP001-007"]
["B51","TW300","PC21-48 FOC",null,null,null,null,null,null,null,null,null,null,null,null,60,"FP001-008"]
["B51","TW300","PC21-48 FOC",null,null,null,null,null,null,null,null,null,null,null,null,195,"FP001-009"]
["B51","TW300","PC21-48 FOC",null,null,null,null,null,null,null,null,null,null,null,null,135,"FP001-010"]
["B51","TW300","PC21-48 FOC",null,null,null,null,null,null,null,null,null,null,null,null,170,"FP001-011"]
["B51","TW300","PC21-96 FOC",null,null,null,null,null,null,null,null,null,null,null,null,195,"FP001-012"]
["B51","TW300","PC21-96 FOC",null,null,null,null,null,null,null,null,null,null,null,null,190,"FP001-013"]
["B51","TW300","PC21-96 FOC",null,null,null,null,null,null,null,null,null,null,null,null,170,"FP001-014"]
["B51","TW300","PC21-96 FOC",null,null,null,null,null,null,null,null,null,null,null,null,175,"FP001-015"]
["B51","TW300","PC21-96 FOC",null,null,null,null,null,null,null,null,null,null,null,null,190,"FP001-016"]
["B51","TW300","PC21-96 FOC",null,null,null,null,null,null,null,null,null,null,null,null,135,"FP001-017"]
["B51","TW300","PC21-96 FOC",null,null,null,null,null,null,null,null,null,null,null,null,280,"FP001-018"]
["B51","TW300","PC21-96 FOC",null,null,null,null,null,null,null,null,null,null,null,null,240,"FP001-019"]
["B51","TW300","PC21-48 FOC",null,null,null,null,null,null,null,null,null,null,null,null,175,"FP001-020"]
["B51","TW300","PC21-96 FOC",null,null,null,null,null,null,null,null,null,null,null,null,85,"FP001-021"]
["B51","TW300","PC21-96 FOC",null,null,null,null,null,null,null,null,null,null,null,null,165,"FP001-022"]
["B51","TW300","PC21-96 FOC",null,null,null,null,null,null,null,null,null,null,null,null,170,"FP001-023"]
["B51","TW300","PC21-48 FOC",null,null,null,null,null,null,null,null,null,null,null,null,265,"FP001-024"]
["B51","TW300","PC21-48 FOC",null,null,null,null,null,null,null,null,null,null,null,null,170,"FP001-025"]
["B51","TW300","PC21-48 FOC",null,null,null,null,null,null,null,null,null,null,null,null,190,"FP001-026"]
["B51","TW300","PC21-48 FOC",null,null,null,null,null,null,null,null,null,null,null,null,175,"FP001-027"]
["B51","TW300","PC21-48 FOC",null,null,null,null,null,null,null,null,null,null,null,null,165,"FP001-028"]
["B51","TW300","PC21-48 FOC",null,null,null,null,null,null,null,null,null,null,null,null,95,"FP001-029"]
["B51","TW300","PC21-48 FOC",null,null,null,null,null,null,null,null,null,null,null,null,160,"FP001-030"]
["B51","TW300","PC21-48 FOC",null,null,null,null,null,null,null,null,null,null,null,null,180,"FP001-031"]
["B51","TW300","PC21-72 FOC",null,null,null,null,null,null,null,null,null,null,null,null,210,"FP001-032"]
["B51","TW300",null,null,null,null,null,null,null,null,null,null,null,null,null,110,"FP001-033"]
["B51","TW300",null,null,null,null,null,null,null,null,null,null,null,null,null,225,"FP001-034"]
["B51","TW300","PC21-24 FOC",null,null,null,null,null,null,null,null,null,null,null,null,110,"FP001-001"]
["B51","TW300","PC21-24 FOC",null,null,null,null,null,null,null,null,null,null,null,null,205,"FP001-002"]
["B51","TW300","PC21-24 FOC",null,null,null,null,null,null,null,null,null,null,null,null,95,"FP001-003"]
["B51","TW300",null,null,null,null,null,null,null,null,null,null,null,null,null,180,"FP001-004"]
["B51","TW300",null,null,null,null,null,null,null,null,null,null,null,null,null,100,"FP001-007"]
["B51","TW300","PC21-96 FOC",null,null,null,null,null,null,null,null,null,null,null,null,160,"FP001-008"]
["B51","TW300",null,null,null,null,null,null,null,null,null,null,null,null,null,75,"FP001-009"]
["B51","TW300",null,null,null,null,null,null,null,null,null,null,null,null,null,45,"FP001-010"]
["B51","TW300",null,null,null,null,null,null,null,null,null,null,null,null,null,85,"FP001-017"]
["B51","TW300",null,null,null,null,null,null,null,null,null,null,null,null,null,60,"FP001-018"]
["B51","TW300","PC21-96 FOC",null,null,null,null,null,null,null,null,null,null,null,null,300,"FP001-019"]
["B51","TW300",null,null,null,null,null,null,null,null,null,null,null,null,null,230,"FP001-021"]
["B51","TW300","PC21-24 FOC",null,null,null,null,null,null,null,null,null,null,null,null,180,"FP001-022"]
["B51","TW300","PC21-24 FOC",null,null,null,null,null,null,null,null,null,null,null,null,180,"FP001-024"]
["B51","TW300",null,null,null,null,null,null,null,null,null,null,null,null,null,175,"FP001-025"]
["B51","TW300",null,null,null,null,null,null,null,null,null,null,null,null,null,60,"FP001-026"]
["B51","TW300","PC21-24 FOC",null,null,null,null,null,null,null,null,null,null,null,null,100,"FP001-027"]
["B51","TW300","PC21-24 FOC",null,null,null,null,null,null,null,null,null,null,null,null,180,"FP001-031"]
["B51","TW300",null,null,null,null,null,null,null,null,null,null,null,null,null,60,"FP001-032"]
["B51","TW300","PC21-96 FOC",null,null,null,null,null,null,null,null,null,null,null,null,195,"FP001-033"]
["B51","TW300",null,null,null,null,null,null,null,null,null,null,null,null,null,185,"FP001-034"]
["B51","TW300",null,null,null,null,null,null,null,null,null,null,null,null,null,60,"FP001-001"]
["B51","TW300",null,null,null,null,null,null,null,null,null,null,null,null,null,85,"FP001-002"]
["B51","TW300",null,null,null,null,null,null,null,null,null,null,null,null,null,60,"FP001-003"]
["B51","TW300",null,null,null,null,null,null,null,null,null,null,null,null,null,60,"FP001-004"]
["B51","TW300",null,null,null,null,null,null,null,null,null,null,null,null,null,60,"FP001-005"]
["B51","TW300",null,null,null,null,null,null,null,null,null,null,null,null,null,110,"FP001-006"]
["B51","TW300","PC21-24 FOC",null,null,null,null,null,null,null,null,null,null,null,null,190,"FP001-007"]
["B51","TW300","PC21-24 FOC",null,null,null,null,null,null,null,null,null,null,null,null,155,"FP001-008"]
["B51","TW300",null,null,null,null,null,null,null,null,null,null,null,null,null,165,"FP001-009"]
["B51","TW300",null,null,null,null,null,null,null,null,null,null,null,null,null,60,"FP001-010"]
["B51","TW300",null,null,null,null,null,null,null,null,null,null,null,null,null,90,"FP001-012"]
["B51","TW300",null,null,null,null,null,null,null,null,null,null,null,null,null,90,"FP001-013"]
["B51","TW300",null,null,null,null,null,null,null,null,null,null,null,null,null,60,"FP001-015"]
["B51","TW300","PC21-24 FOC",null,null,null,null,null,null,null,null,null,null,null,null,170,"FP001-016"]
["B51","TW300","PC21-24 FOC",null,null,null,null,null,null,null,null,null,null,null,null,165,"FP001-017"]
["B51","TW300","PC21-24 FOC",null,null,null,null,null,null,null,null,null,null,null,null,110,"FP001-018"]
["B51","TW300","PC21",null,null,null,null,null,null,null,null,null,null,null,null,180,"FP001-019"]
["B51","TW300",null,null,null,null,null,null,null,null,null,null,null,null,null,140,"FP001-020"]
["B51","TW300",null,null,null,null,null,null,null,null,null,null,null,null,null,100,"FP001-021"]
["B51","TW300","PC21-24 FOC",null,null,null,null,null,null,null,null,null,null,null,null,90,"FP001-022"]
["B51","TW300","PC21-72 FOC",null,null,null,null,null,null,null,null,null,null,null,null,80,"FP001-023"]
["B51","TW300","PC21-72 FOC",null,null,null,null,null,null,null,null,null,null,null,null,70,"FP001-024"]
["B51","TW300","PC21-72 FOC",null,null,null,null,null,null,null,null,null,null,null,null,200,"FP001-025"]
["B51","TW300",null,null,null,null,null,null,null,null,null,null,null,null,null,95,"FP001-026"]
["B51","TW300",null,null,null,null,null,null,null,null,null,null,null,null,null,96,"FP001-027"]
["B51","TW300",null,null,null,null,null,null,null,null,null,null,null,null,null,60,"FP001-028"]
["B51","TW300",null,null,null,null,null,null,null,null,null,null,null,null,null,100,"FP001-029"]
["B51","TW300",null,null,null,null,null,null,null,null,null,null,null,null,null,55,"FP001-030"]
["B51","TW300",null,null,null,null,null,null,null,null,null,null,null,null,null,55,"FP001-031"]
["B51","TW300",null,null,null,null,null,null,null,null,null,null,null,null,null,56,"FP001-032"]
["B51","TW300",null,null,null,null,null,null,null,null,null,null,null,null,null,125,"FP001-033"]
["B51","TW300",null,null,null,null,null,null,null,null,null,null,null,null,null,110,"FP001-034"]
["B51","TW300",null,null,null,null,null,null,null,null,null,null,null,null,null,65,"FP001-001"]
["B51","TW300",null,null,null,null,null,null,null,null,null,null,null,null,null,100,"FP001-002"]
["B51","TW300",null,null,null,null,null,null,null,null,null,null,null,null,null,55,"FP001-003"]
["B51","TW300",null,null,null,null,null,null,null,null,null,null,null,null,null,90,"FP001-004"]
["B51","TW300",null,null,null,null,null,null,null,null,null,null,null,null,null,50,"FP001-005"]
["B51","TW300",null,null,null,null,null,null,null,null,null,null,null,null,null,120,"FP001-006"]
["B51","TW300",null,null,null,null,null,null,null,null,null,null,null,null,null,180,"FP001-007"]
["B51","TW300",null,null,null,null,null,null,null,null,null,null,null,null,null,175,"FP001-008"]
["B51","TW300",null,null,null,null,null,null,null,null,null,null,null,null,null,95,"FP001-009"]
["B51","TW300",null,null,null,null,null,null,null,null,null,null,null,null,null,55,"FP001-010"]
["B51","TW300",null,null,null,null,null,null,null,null,null,null,null,null,null,85,"FP001-011"]
["B51","TW300",null,null,null,null,null,null,null,null,null,null,null,null,null,90,"FP001-012"]
["B51","TW300",null,null,null,null,null,null,null,null,null,null,null,null,null,65,"FP001-013"]
["B51","TW300",null,null,null,null,null,null,null,null,null,null,null,null,null,275,"FP001-014"]
["B51","TW300",null,null,null,null,null,null,null,null,null,null,null,null,null,115,"FP001-015"]
["B51","TW300",null,null,null,null,null,null,null,null,null,null,null,null,null,45,"FP001-016"]
["B51","TW300",null,null,null,null,null,null,null,null,null,null,null,null,null,115,"FP001-017"]
["B51","TW300",null,null,null,null,null,null,null,null,null,null,null,null,null,85,"FP001-018"]
["B51","TW300",null,null,null,null,null,null,null,null,null,null,null,null,null,90,"FP001-019"]
["B51","TW300",null,null,null,null,null,null,null,null,null,null,null,null,null,91,"FP001-020"]
["B51","TW300",null,null,null,null,null,null,null,null,null,null,null,null,null,155,"FP001-021"]
["B51","TW300",null,null,null,null,null,null,null,null,null,null,null,null,null,140,"FP001-022"]
["B51","TW300",null,null,null,null,null,null,null,null,null,null,null,null,null,160,"FP001-023"]
["B51 ","TW300",null,null,null,null,null,null,null,null,null,null,null,null,null,110,"FP001-024"]
["B51","TW300","PC21 48 FOC",null,null,null,null,null,null,null,null,null,null,null,null,100,"FP001-034"]
["B51 ","TW300",null,null,null,null,null,null,null,null,null,null,null,null,null,55,"FP001-004"]
["B51 ","TW300",null,null,null,null,null,null,null,null,null,null,null,null,null,40,"FP001-005"]
["B51 ","TW300",null,null,null,null,null,null,null,null,null,null,null,null,null,100,"FP001-006"]
["B51 ","TW300",null,null,null,null,null,null,null,null,null,null,null,null,null,60,"FP001-007"]
["B51 ","TW300",null,null,null,null,null,null,null,null,null,null,null,null,null,130,"FP001-009"]
["B51 ","TW300",null,null,null,null,null,null,null,null,null,null,null,null,null,85,"FP001-010"]
["B51 ","TW300",null,null,null,null,null,null,null,null,null,null,null,null,null,60,"FP001-011"]
["B51 ","TW300",null,null,null,null,null,null,null,null,null,null,null,null,null,85,"FP001-012"]
["B51 ","TW300",null,null,null,null,null,null,null,null,null,null,null,null,null,80,"FP001-013"]
["B51 ","TW300",null,null,null,null,null,null,null,null,null,null,null,null,null,140,"FP001-014"]
["B51 ","TW300",null,null,null,null,null,null,null,null,null,null,null,null,null,155,"FP001-015"]
["B51 ","TW300",null,null,null,null,null,null,null,null,null,null,null,null,null,100,"FP001-016"]
["B51 ","TW300",null,null,null,null,null,null,null,null,null,null,null,null,null,100,"FP001-017"]
["B51 ","TW300",null,null,null,null,null,null,null,null,null,null,null,null,null,155,"FP001-018"]
["B51 ","TW300",null,null,null,null,null,null,null,null,null,null,null,null,null,120,"FP001-019"]
["B51","TW300",null,null,null,null,null,null,null,null,null,null,null,null,null,105,"FP001-020"]
["B51 ","TW300",null,null,null,null,null,null,null,null,null,null,null,null,null,160,"FP001-021"]
["B51 ","TW300",null,null,null,null,null,null,null,null,null,null,null,null,null,95,"FP001-022"]
["B51 ","TW300",null,null,null,null,null,null,null,null,null,null,null,null,null,95,"FP001-023"]
["B51 ","TW300",null,null,null,null,null,null,null,null,null,null,null,null,null,170,"FP001-025"]
["B51 ","TW300",null,null,null,null,null,null,null,null,null,null,null,null,null,200,"FP001-026"]
["B51 ","TW300",null,null,null,null,null,null,null,null,null,null,null,null,null,60,"FP001-027"]
["B51 ","TW300",null,null,null,null,null,null,null,null,null,null,null,null,null,380,"FP001-028"]
["B51 ","TW300",null,null,null,null,null,null,null,null,null,null,null,null,null,140,"FP001-029"]
["B51 ","TW300",null,null,null,null,null,null,null,null,null,null,null,null,null,180,"FP001-030"]
["B51 ","TW300",null,null,null,null,null,null,null,null,null,null,null,null,null,260,"FP001-031"]
["B51","TW300",null,null,null,null,null,null,null,null,null,null,null,null,null,130,"FP001-032"]
["B51 ","TW300",null,null,null,null,null,null,null,null,null,null,null,null,null,55,"FP001-033"]
["B51 ","TW300",null,null,null,null,null,null,null,null,null,null,null,null,null,60,"FP001-034"]
["B51 ","TW300",null,null,null,null,null,null,null,null,null,null,null,null,null,65,"FP001-001"]
["B51 ","TW300",null,null,null,null,null,null,null,null,null,null,null,null,null,130,"FP001-002"]
["B51 ","TW300",null,null,null,null,null,null,null,null,null,null,null,null,null,60,"FP001-003"]
["B51 ","TW300",null,null,null,null,null,null,null,null,null,null,null,null,null,90,"FP001-004"]
["B51 ","TW300","PC21 24 FOC",null,null,null,null,null,null,null,null,null,null,null,null,670,"FP001-005"]
["B51 ","TW300","PC21 24 FOC ",null,null,null,null,null,null,null,null,null,null,null,null,160,"FP001-006"]
["B51 ","TW300","PC21 24 FOC",null,null,null,null,null,null,null,null,null,null,null,null,245,"FP001-009"]
["B51 ","TW300","PC21 48 FOC",null,null,null,null,null,null,null,null,null,null,null,null,190,"FP001-011"]
["B51","TW300","PC21 96 FOC",null,null,null,null,null,null,null,null,null,null,null,null,175,"FP001-012"]
["B51 ","TW300","PC21 96 FOC",null,null,null,null,null,null,null,null,null,null,null,null,315,"FP001-013"]
["B51 ","TW300","PC21 96 FOC",null,null,null,null,null,null,null,null,null,null,null,null,105,"FP001-014"]
["B51 ","TW300","PC21 96 FOC",null,null,null,null,null,null,null,null,null,null,null,null,185,"FP001-015"]
["B51","TW300","PC21 96 FOC",null,null,null,null,null,null,null,null,null,null,null,null,295,"FP001-017"]
["B51 ","TW300","PC21 96 FOC",null,null,null,null,null,null,null,null,null,null,null,null,170,"FP001-018"]
["B51 ","TW300","PC21 96 FOC",null,null,null,null,null,null,null,null,null,null,null,null,160,"FP001-020"]
["B51 ","TW300","PC21 24 FOC",null,null,null,null,null,null,null,null,null,null,null,null,60,"FP001-022"]
["B51 ","TW300","PC21 24 FOC",null,null,null,null,null,null,null,null,null,null,null,null,140,"FP001-029"]
["B51 ","TW300","PC21 24 FOC ",null,null,null,null,null,null,null,null,null,null,null,null,45,"FP001-033"]
["B51 ","TW300","PC21 96 FOC",null,null,null,null,null,null,null,null,null,null,null,null,55,"FP001-034"]
["B51 ","TW300","PC21 96 FOC",null,null,null,null,null,null,null,null,null,null,null,null,195,"FP001-002"]
["B51 ","TW300","PC21 96 FOC",null,null,null,null,null,null,null,null,null,null,null,null,165,"FP001-003"]
["B51 ","TW300","PC21 96 FOC",null,null,null,null,null,null,null,null,null,null,null,null,80,"FP001-004"]
["B51 ","TW300","PC21 96 FOC ",null,null,null,null,null,null,null,null,null,null,null,null,135,"FP001-005"]
["B51 ","TW300","PC21 96 FOC",null,null,null,null,null,null,null,null,null,null,null,null,285,"FP001-006"]
["B51 ","TW300","PC21 24 FOC",null,null,null,null,null,null,null,null,null,null,null,null,315,"FP001-007"]
["B51 ","TW300","PC21 72 FOC",null,null,null,null,null,null,null,null,null,null,null,null,185,"FP001-008"]
["B51 ","TW300","PC21 72 FOC",null,null,null,null,null,null,null,null,null,null,null,null,165,"FP001-009"]
["B51 ","TW300","PC21 72 FOC",null,null,null,null,null,null,null,null,null,null,null,null,120,"FP001-010"]
["B51 ","TW300","PC21 72 FOC",null,null,null,null,null,null,null,null,null,null,null,null,120,"FP001-011"]
["B51 ","TW300","PC21 72 FOC",null,null,null,null,null,null,null,null,null,null,null,null,175,"FP001-012"]
["B51 ","TW300","PC21 24 FOC",null,null,null,null,null,null,null,null,null,null,null,null,290,"FP001-013"]
["B51 ","TW300","PC21 24 FOC",null,null,null,null,null,null,null,null,null,null,null,null,120,"FP001-014"]
["B51 ","TW300","PC21 24 FOC",null,null,null,null,null,null,null,null,null,null,null,null,190,"FP001-015"]
["B51 ","TW300","PC21 24 FOC",null,null,null,null,null,null,null,null,null,null,null,null,165,"FP001-017"]
["B51 ","TW300","PC21 24 FOC",null,null,null,null,null,null,null,null,null,null,null,null,250,"FP001-018"]
["B51 ","TW300","PC21 24 FOC ",null,null,null,null,null,null,null,null,null,null,null,null,260,"FP001-020"]
["B51 ","TW300","PC21 24 FOC",null,null,null,null,null,null,null,null,null,null,null,null,60,"FP001-021"]
["B51 ","TW300","PC21 24 FOC ",null,null,null,null,null,null,null,null,null,null,null,null,200,"FP001-023"]
["B51 ","TW300","PC21 24 FOC ",null,null,null,null,null,null,null,null,null,null,null,null,135,"FP001-024"]
["B51 ","TW300","PC21 24 FOC ",null,null,null,null,null,null,null,null,null,null,null,null,145,"FP001-025"]
["B51 ","TW300","PC21 24 FOC",null,null,null,null,null,null,null,null,null,null,null,null,90,"FP001-028"]
["B51 ","TW300","PC21 24 FOC ",null,null,null,null,null,null,null,null,null,null,null,null,145,"FP001-029"]
["B51 ","TW300","PC21 24 FOC",null,null,null,null,null,null,null,null,null,null,null,null,180,"FP001-031"]
["B51 ","TW300","PC21 24 FOC",null,null,null,null,null,null,null,null,null,null,null,null,95,"FP001-032"]
["B51 ","TW300","PC21 24 FOC",null,null,null,null,null,null,null,null,null,null,null,null,215,"FP001-033"]
["B51 ","TW300","PC21 24 FOC",null,null,null,null,null,null,null,null,null,null,null,null,175,"FP001-004"]
["B51 ","TW300","PC21 24 FOC",null,null,null,null,null,null,null,null,null,null,null,null,155,"FP001-006"]
["B51 ","TW300","PC21 24 FOC",null,null,null,null,null,null,null,null,null,null,null,null,90,"FP001-008"]
["B51 ","TW300","PC21 24 FOC",null,null,null,null,null,null,null,null,null,null,null,null,160,"FP001-009"]
["B51 ","TW300","PC21 24 FOC",null,null,null,null,null,null,null,null,null,null,null,null,165,"FP001-010"]
["B51","TW300","PC21 24 FOC",null,null,null,null,null,null,null,null,null,null,null,null,195,"FP001-027"]
["B51","TW300","PC21 24 FOC",null,null,null,null,null,null,null,null,null,null,null,null,170,"FP001-028"]
["B51 ","TW300","PC21 24 FOC",null,null,null,null,null,null,null,null,null,null,null,null,195,"FP001-029"]
["B51","TW300","PC21 24 FOC",null,null,null,null,null,null,null,null,null,null,null,null,135,"FP001-031"]
["B51","TW300","PC21 24 FOC",null,null,null,null,null,null,null,null,null,null,null,null,160,"FP001-032"]
["B51","TW300","PC21 24 FOC",null,null,null,null,null,null,null,null,null,null,null,null,200,"FP001-003"]
["B51","TW300","PC21 24 FOC",null,null,null,null,null,null,null,null,null,null,null,null,95,"FP001-004"]
["B51","TW300","PC21 24 FOC",null,null,null,null,null,null,null,null,null,null,null,null,180,"FP001-005"]
["B51","TW300","PC21 24 FOC",null,null,null,null,null,null,null,null,null,null,null,null,155,"FP001-006"]
["B51","TW300","PC21 24 FOC",null,null,null,null,null,null,null,null,null,null,null,null,160,"FP001-008"]
["B51","TW300","PC21 24 FOC",null,null,null,null,null,null,null,null,null,null,null,null,165,"FP001-009"]
["B51","TW300","PC21 24 FOC",null,null,null,null,null,null,null,null,null,null,null,null,190,"FP001-013"]
["B51","TW300","PC21 24 FOC",null,null,null,null,null,null,null,null,null,null,null,null,180,"FP001-014"]
["B51","TW300","PC21 24 FOC",null,null,null,null,null,null,null,null,null,null,null,null,170,"FP001-015"]
["B51","TW300","PC21 24 FOC",null,null,null,null,null,null,null,null,null,null,null,null,85,"FP001-017"]
["B51","TW300","PC21 24 FOC ",null,null,null,null,null,null,null,null,null,null,null,null,275,"FP001-018"]
["B51","TW300","PC21 24 FOC",null,null,null,null,null,null,null,null,null,null,null,null,165,"FP001-019"]
["B51","TW300","PC21 24 FOC",null,null,null,null,null,null,null,null,null,null,null,null,250,"FP001-021"]
["B51","TW300","PC21 24 FOC","PC21 24 FOC",null,null,null,null,null,null,null,null,null,null,null,330,"FP001-022"]
["B51 ","TW300","PC21 24 FOC",null,null,null,null,null,null,null,null,null,null,null,null,130,"FP001-029"]
["B51 ","TW300","PC21 96 FOC",null,null,null,null,null,null,null,null,null,null,null,null,135,"FP001-005"]
["B51","TW300","PC21 96 FOC",null,null,null,null,null,null,null,null,null,null,null,null,110,"FP001-006"]
["B51 ","TW300","PC21 96 FOC",null,null,null,null,null,null,null,null,null,null,null,null,185,"FP001-007"]
["B51 ","TW300","PC21 96 FOC",null,null,null,null,null,null,null,null,null,null,null,null,195,"FP001-008"]
["B51 ","TW300","PC21 96 FOC",null,null,null,null,null,null,null,null,null,null,null,null,335,"FP001-009"]
["B51 ","TW300","PC21 96 FOC",null,null,null,null,null,null,null,null,null,null,null,null,75,"FP001-010"]
["B51 ","TW300","PC21 96 FOC",null,null,null,null,null,null,null,null,null,null,null,null,170,"FP001-011"]
["B51 ","TW300","PC21 96 FOC",null,null,null,null,null,null,null,null,null,null,null,null,70,"FP001-012"]
["B51 ","TW300","PC21 24 FOC",null,null,null,null,null,null,null,null,null,null,null,null,105,"FP001-014"]
["B51 ","TW300","PC21 24 FOC",null,null,null,null,null,null,null,null,null,null,null,null,155,"FP001-015"]
["B51 ","TW300",null,null,null,null,null,null,null,null,null,null,null,null,null,95,"FP001-016"]
["B51","TW300",null,null,null,null,null,null,null,null,null,null,null,null,null,105,"FP001-017"]
["B51","TW300",null,null,null,null,null,null,null,null,null,null,null,null,null,65,"FP001-020"]
["B51","TW300",null,null,null,null,null,null,null,null,null,null,null,null,null,170,"FP001-021"]
["B51","TW300","PC21 24 FOC",null,null,null,null,null,null,null,null,null,null,null,null,75,"FP001-022"]
["B51","TW300","PC21 24 FOC",null,null,null,null,null,null,null,null,null,null,null,null,55,"FP001-023"]
["B51","TW300",null,null,null,null,null,null,null,null,null,null,null,null,null,170,"FP001-024"]
["B51","TW300",null,null,null,null,null,null,null,null,null,null,null,null,null,90,"FP001-025"]
["B51","TW300",null,null,null,null,null,null,null,null,null,null,null,null,null,60,"FP001-026"]
["B51","TW300",null,null,null,null,null,null,null,null,null,null,null,null,null,55,"FP001-027"]
["B51","TW300",null,null,null,null,null,null,null,null,null,null,null,null,null,55,"FP001-028"]
["B51","TW300",null,null,null,null,null,null,null,null,null,null,null,null,null,85,"FP001-029"]
["B51","TW300",null,null,null,null,null,null,null,null,null,null,null,null,null,55,"FP001-030"]
["B51","TW300",null,null,null,null,null,null,null,null,null,null,null,null,null,105,"FP001-031"]
["B51","TW300",null,null,null,null,null,null,null,null,null,null,null,null,null,185,"FP001-033"]
["B51","TW300",null,null,null,null,null,null,null,null,null,null,null,null,null,75,"FP001-001"]
["B51","TW300",null,null,null,null,null,null,null,null,null,null,null,null,null,55,"FP001-002"]
["B51","TW300",null,null,null,null,null,null,null,null,null,null,null,null,null,55,"FP001-003"]
["B51","TW300",null,null,null,null,null,null,null,null,null,null,null,null,null,55,"FP001-004"]
["B51","TW300",null,null,null,null,null,null,null,null,null,null,null,null,null,90,"FP001-005"]
["B51","TW300",null,null,null,null,null,null,null,null,null,null,null,null,null,55,"FP001-006"]
["B51 ","TW300",null,null,null,null,null,null,null,null,null,null,null,null,null,85,"FP001-007"]
["B51 ","TW300",null,null,null,null,null,null,null,null,null,null,null,null,null,55,"FP001-008"]
["B51 ","TW300",null,null,null,null,null,null,null,null,null,null,null,null,null,55,"FP001-009"]
["B51 ","TW300",null,null,null,null,null,null,null,null,null,null,null,null,null,125,"FP001-010"]
["B51 ","TW300",null,null,null,null,null,null,null,null,null,null,null,null,null,115,"FP001-011"]
["B51 ","TW300",null,null,null,null,null,null,null,null,null,null,null,null,null,55,"FP001-012"]
["B51 ","TW300",null,null,null,null,null,null,null,null,null,null,null,null,null,190,"FP001-013"]
["B51 ","TW300",null,null,null,null,null,null,null,null,null,null,null,null,null,145,"FP001-014"]
["B51 ","TW300",null,null,null,null,null,null,null,null,null,null,null,null,null,75,"FP001-015"]
["B51 ","TW300",null,null,null,null,null,null,null,null,null,null,null,null,null,55,"FP001-016"]
["B51 ","TW300",null,null,null,null,null,null,null,null,null,null,null,null,null,95,"FP001-017"]
["B51 ","TW300",null,null,null,null,null,null,null,null,null,null,null,null,null,210,"FP001-018"]
["B51 ","TW300",null,null,null,null,null,null,null,null,null,null,null,null,null,90,"FP001-020"]
["B51 ","TW300",null,null,null,null,null,null,null,null,null,null,null,null,null,55,"FP001-021"]
["B51 ","TW300",null,null,null,null,null,null,null,null,null,null,null,null,null,85,"FP001-022"]
["B51 ","TW300",null,null,null,null,null,null,null,null,null,null,null,null,null,100,"FP001-023"]
["B51 ","TW300",null,null,null,null,null,null,null,null,null,null,null,null,null,55,"FP001-024"]
["B51 ","TW300",null,null,null,null,null,null,null,null,null,null,null,null,null,175,"FP001-025"]
["B51 ","TW300","PC21 48 FOC",null,null,null,null,null,null,null,null,null,null,null,null,50,"FP001-026"]
["B51 ","TW300",null,null,null,null,null,null,null,null,null,null,null,null,null,130,"FP001-027"]
["B51 ","TW300",null,null,null,null,null,null,null,null,null,null,null,null,null,160,"FP001-028"]
["B51 ","TW300",null,null,null,null,null,null,null,null,null,null,null,null,null,105,"FP001-030"]
["B51 ","TW300",null,null,null,null,null,null,null,null,null,null,null,null,null,65,"FP001-033"]
["B51 ","TW300",null,null,null,null,null,null,null,null,null,null,null,null,null,145,"FP001-034"]
["B51 ","TW300",null,null,null,null,null,null,null,null,null,null,null,null,null,55,"FP001-001"]
["B51 ","TW300",null,null,null,null,null,null,null,null,null,null,null,null,null,95,"FP001-002"]
["B51 ","TW300",null,null,null,null,null,null,null,null,null,null,null,null,null,95,"FP001-005"]
["B51 ","TW300",null,null,null,null,null,null,null,null,null,null,null,null,null,null,"FP001-006"]
["B51 ","TW300",null,null,null,null,null,null,null,null,null,null,null,null,null,null,"FP001-007"]
["B51","TW300",null,null,null,null,null,null,null,null,null,null,null,null,null,null,"FP001-009"]
[]
[null,null,null,null,null,null,null,null,null,null,null,null,null,null,{"$f":"SUM(P1:P303)","v":40148}]

{"sheet":"Help","index":4,"n_rows":4,"n_cols":2,"rows_kept":4,"cut":false,"hidden":false,"merged":[]}
[]
[]
[]
[null,"Downloads\\Help.Mp4"]